Workbook

Sheet 0
A1: Gambling Commission
A2: Industry Statistics - May 2020
A5: 0 | B5: Contents and Preface
A7: Section 1: Primary Statistics
B9: 1 | C9: Gambling industry overview
B10: 2 | C10: Operator & Licence numbers
B11: 3 | C11: Premises
B12: 4 | C12: Workforce
B13: 5 | C13: Machines across non remote sectors
B14: 6 | C14: Arcades (non-remote)
C15: 6a - Adult Gaming Centres
C16: 6b - Licensed Family Entertainment Centres
B17: 7 | C17: Betting (non-remote)
C18: 7a - Off Course Betting (over the counter)
C19: 7b - On Course Betting
C20: 7c - Pool Betting
C21: 7d - Gaming Machines in betting premises
B22: 8 | C22: Bingo (non-remote)
C23: 8a - Bingo Games
C24: 8b - Gaming Machines in bingo premises
B25: 9 | C25: Casino (non-remote)
C26: 9a - Casino Games
C27: 9b - Gaming Machines in casino premises
B28: 10 | C28: Lotteries (non-remote and remote)
B29: 11 | C29: Remote Casino, Betting & Bingo (RCBB)
C30: 11a - Casino (remote)
C31: 11b - Betting (remote)
C32: 11c - Bingo (remote)
B33: 12 | C33: The National Lottery (non-remote and remote)
A35: Section 2: Other Statistics
B37: 13 | C37: Gambling Software
B41: This Gambling Industry Statistics publication reports on the size and shape of the gambling industry in Great Britain. It provides an overview of Gross Gambling Yield (GGY) by sector, along with the numbers of licensed operators, premises and people employed within the industry.
B43: The report is compiled from data sets submitted to the Gambling Commission by licence holders. These include regulatory returns, society lottery submissions and data sharing arrangements with the National Lottery licence holder.
B46: Information on how we prepare Industry Statistics and a glossary of terms (including a detailed explanation of Gross Gambling Yield) are available on our website.
B49: We use apportionment and estimating to produce these statistics. In this report, we have apportioned 2,299 (48%) of 4,792 regulatory returns and estimated 1,197 (25%).
B51: Due to our use of apportioning and estimating, the latest 12-months of statistics should be considered provisional figures (marked with ‘P’). When we receive new data from licence holders, we update our data. Revisions of previously published Gambling Industry Statistics publications are marked with ‘R’. We only update data for the last three reporting periods.
A56: For further information
A58: Release Date: | C58: 2020-05-28
A59: Next Release: | C59: 2020-11-26
A61: Website: | C61: www.gamblingcommission.gov.uk
A63: Responsible Statistician: | C63: Andrew Dixon
A64: Head of Profession: | C64: Matthew Webster

Sheet 1
A1: Gambling Commission
A2: Industry Statistics - May 2020
A5: 1 | B5: Gambling industry overview
B7: Gambling Industry Gross Gambling Yield by Sector (£m)
A8: Reporting Period | B8: Overall Total | C8: % Change | D8: Total excluding National Lottery & Lotteries | E8: Arcades (non-remote) | F8: Betting (non-remote) | G8: Bingo (non-remote) | H8: Casino (non-remote) | I8: Betting (remote) | J8: Bingo (remote) | K8: Casino (remote) | L8: Lotteries (remote and non-remote) | M8: The National Lottery (remote and non-remote)
A9: Apr 2008 - Mar 2009 | B9: =D9+L9+M9 -> 8364.92 | D9: =SUM(E9:K9) -> 5699.73 | E9: 480.35 | F9: 2903.24 | G9: 703.11 | H9: 796.17 | I9: 783.31 | J9: 0.47 | K9: 33.08 | L9: 143.69 | M9: 2521.5
A10: Apr 2009 - Mar 2010 | B10: =D10+L10+M10 -> 8115.64 | C10: =(B10-B9)/B9 -> -0.02980064364 | D10: =SUM(E10:K10) -> 5277.89 | E10: 455.96 | F10: 2811.36 | G10: 627.22 | H10: 751.13 | I10: 607.76 | J10: 1.51 | K10: 22.95 | L10: 158.55 | M10: 2679.2
A11: Apr 2010 - Mar 2011 | B11: =D11+L11+M11 -> 8435.704698 | C11: =(B11-B10)/B10 -> 0.03943801074 | D11: =SUM(E11:K11) -> 5425.387314 | E11: 392.0019132 | F11: 2957.321985 | G11: 625.5776759 | H11: 797.4257399 | I11: 638.18 | J11: 2.19 | K11: 12.69 | L11: 170.1173835 | M11: 2840.2
A12: Apr 2011 - Mar 2012 | B12: =D12+L12+M12 -> 9026.797303 | C12: =(B12-B11)/B11 -> 0.07007032928 | D12: =SUM(E12:K12) -> 5674.284427 | E12: 381.0567524 | F12: 3029.593856 | G12: 680.6396417 | H12: 872.8041767 | I12: 687.92 | J12: 2.03 | K12: 20.24 | L12: 228.6128767 | M12: 3123.9
A13: Apr 2012 - Mar 2013 | B13: =D13+L13+M13 -> 9704.739978 | C13: =(B13-B12)/B12 -> 0.07510334532 | D13: =SUM(E13:K13) -> 6152.235385 | E13: 358.7114228 | F13: 3198.598951 | G13: 700.9040426 | H13: 961.4109682 | I13: 887.66 | J13: 2.46 | K13: 42.49 | L13: 273.0045937 | M13: 3279.5
A14: Apr 2013 - Mar 2014 | B14: =D14+L14+M14 -> 9868.624197 | C14: =(B14-B13)/B13 -> 0.01688702832 | D14: =SUM(E14:K14) -> 6475.034945 | E14: 379.1054562 | F14: 3176.765037 | G14: 673.4406286 | H14: 1111.063823 | I14: 1102.85 | J14: 4.32 | K14: 27.49 | L14: 293.7892525 | M14: 3099.8
A15: Apr 2014 - Mar 2015 | B15: =D15+L15+M15 -> 11313.78616 | C15: =(B15-B14)/B14 -> 0.1464400648 | D15: =SUM(E15:K15) -> 7731.947092 | E15: 387.2224149 | F15: 3266.907992 | G15: 679.0238578 | H15: 1159.788665 | I15: 1251.392576 | J15: 72.23226134 | K15: 915.3793244 | L15: 349.7390724 | M15: 3232.1
A16: Apr 2015 - Mar 2016 | B16: =D16+L16+M16 -> 13456.05434 | C16: =(B16-B15)/B15 -> 0.1893502447 | D16: =SUM(E16:K16) -> 9659.488911 | E16: 418.059798 | F16: 3318.187093 | G16: 693.1050951 | H16: 999.3810486 | I16: 1743.91306 | J16: 122.4069271 | K16: 2364.435889 | L16: 379.765432 | M16: 3416.8
A17: Apr 2016 - Mar 2017 | B17: =D17+L17+M17 -> 13779.80127 | C17: =(B17-B16)/B16 -> 0.02405957309 | D17: =SUM(E17:K17) -> 10358.77221 | E17: 424.9299084 | F17: 3310.843589 | G17: 684.2787674 | H17: 1163.537315 | I17: 1952.992975 | J17: 161.1504922 | K17: 2661.039168 | L17: 442.4290522 | M17: 2978.6
A18: Apr 2017 - Mar 2018R | B18: =D18+L18+M18 -> 14424.42539 | C18: =(B18-B17)/B17 -> 0.04678036404 | D18: =SUM(E18:K18) -> 10908.69058 | E18: 424.483953 | F18: 3268.211166 | G18: 680.117079 | H18: 1180.717246 | I18: 2254.250567 | J18: 163.9335229 | K18: 2936.977049 | L18: 507.9348023 | M18: 3007.8
A19: Apr 2018 - Mar 2019R | B19: =D19+L19+M19 -> 14330.40913 | C19: =(B19-B18)/B18 -> -0.006517851229 | D19: =SUM(E19:K19) -> 10709.29908 | E19: 435.934552 | F19: 3261.404757 | G19: 673.305529 | H19: 1058.818831 | I19: 2033.778053 | J19: 176.0907713 | K19: 3069.966587 | L19: 541.8100472 | M19: 3079.3
A20: Oct 2018 - Sep 2019P | B20: =D20+L20+M20 -> 14261.37116 | C20: =(B20-B19)/B19 -> -0.004817585157 | D20: =SUM(E20:K20) -> 10504.25719 | E20: 461.7157966 | F20: 2811.669076 | G20: 668.950663 | H20: 1052.739379 | I20: 2121.002112 | J20: 198.0892583 | K20: 3190.090906 | L20: 572.5139697 | M20: 3184.6

Sheet 2
A1: Gambling Commission
A2: Industry Statistics - May 2020
A4: 2 | C4: Operator and Licence Numbers
B7: Licensed Activities
A8: Reporting Period | B8: Total Activities Licensed | C8: % Change | D8: Adult Gaming Centre | E8: Betting | F8: Bingo | G8: Casino 2005 | H8: Casino 1968 | I8: External Lottery Manager | J8: Licensed Family Entertainment Centre | K8: Gaming Machine Technical | L8: Lottery | M8: Remote Casino, Betting & Bingo | N8: Gambling Software | O8: Trading Rooms Only
A9: 2009-03-31 | B9: 4108 | C9: N/A | D9: 623 | E9: 1382 | F9: 214 | G9: 3 | H9: 55 | I9: 36 | J9: 312 | K9: 643 | L9: 634 | M9: 201 | N9: 99 | O9: 6
A10: 2010-03-31 | B10: 3989 | C10: =SUM(B10-B9)/B9 -> -0.02896786758 | D10: 613 | E10: 1294 | F10: 229 | G10: 3 | H10: 50 | I10: 34 | J10: 275 | K10: 644 | L10: 524 | M10: 219 | N10: 90 | O10: 14
A11: 2011-03-31 | B11: 3899 | C11: =SUM(B11-B10)/B10 -> -0.02256204563 | D11: 575 | E11: 1224 | F11: 245 | G11: 7 | H11: 47 | I11: 40 | J11: 235 | K11: 607 | L11: 626 | M11: 194 | N11: 84 | O11: 15
A12: 2012-03-31 | B12: 3828 | C12: =SUM(B12-B11)/B11 -> -0.01820979738 | D12: 544 | E12: 1130 | F12: 230 | G12: 5 | H12: 49 | I12: 50 | J12: 212 | K12: 593 | L12: 717 | M12: 194 | N12: 91 | O12: 13
A13: 2013-03-31 | B13: 3574 | C13: =SUM(B13-B12)/B12 -> -0.06635318704 | D13: 532 | E13: 1038 | F13: 218 | G13: 6 | H13: 47 | I13: 46 | J13: 192 | K13: 589 | L13: 616 | M13: 182 | N13: 96 | O13: 12
A14: 2014-03-31 | B14: 3403 | C14: =SUM(B14-B13)/B13 -> -0.0478455512 | D14: 505 | E14: 958 | F14: 215 | G14: 7 | H14: 44 | I14: 50 | J14: 178 | K14: 573 | L14: 601 | M14: 173 | N14: 89 | O14: 10
A15: 2015-03-31 | B15: 3770 | C15: =SUM(B15-B14)/B14 -> 0.1078460182 | D15: 498 | E15: 892 | F15: 209 | G15: 7 | H15: 44 | I15: 53 | J15: 169 | K15: 563 | L15: 613 | M15: 499 | N15: 216 | O15: 7
A16: 2016-03-31 | B16: 3728 | C16: =SUM(B16-B15)/B15 -> -0.01114058355 | D16: 490 | E16: 828 | F16: 200 | G16: 7 | H16: 43 | I16: 54 | J16: 161 | K16: 555 | L16: 637 | M16: 506 | N16: 241 | O16: 6
A17: 2017-03-31 | B17: 3681 | C17: =SUM(B17-B16)/B16 -> -0.01260729614 | D17: 469 | E17: 792 | F17: 192 | G17: 8 | H17: 44 | I17: 53 | J17: 155 | K17: 532 | L17: 649 | M17: 528 | N17: 254 | O17: 5
A18: 2018-03-31 | B18: 3781 | C18: =SUM(B18-B17)/B17 -> 0.02716653083 | D18: 458 | E18: 761 | F18: 185 | G18: 8 | H18: 44 | I18: 62 | J18: 141 | K18: 524 | L18: 686 | M18: 608 | N18: 299 | O18: 5
A19: 2019-03-31 | B19: 3656 | C19: =SUM(B19-B18)/B18 -> -0.03306003703 | D19: 429 | E19: 720 | F19: 179 | G19: 9 | H19: 48 | I19: 53 | J19: 127 | K19: 505 | L19: 640 | M19: 629 | N19: 314 | O19: 3
A20: 2019-09-30 | B20: 3641 | C20: =SUM(B20-B19)/B19 -> -0.004102844639 | D20: 422 | E20: 687 | F20: 181 | G20: 9 | H20: 47 | I20: 51 | J20: 125 | K20: 491 | L20: 653 | M20: 648 | N20: 324 | O20: 3
A24: Reporting Period | B24: Number of Operators | C24: % Change | D24: Operators with Multiple Activities
A25: 2009-03-31 | B25: 3482 | C25: N/A | D25: 387
A26: 2010-03-31 | B26: 3288 | C26: =SUM(B26-B25)/B25 -> -0.05571510626 | D26: 375
A27: 2011-03-31 | B27: 3137 | C27: =SUM(B27-B26)/B26 -> -0.04592457421 | D27: 371
A28: 2012-03-31 | B28: 3034 | C28: =SUM(B28-B27)/B27 -> -0.03283391776 | D28: 351
A29: 2013-03-31 | B29: 2887 | C29: =SUM(B29-B28)/B28 -> -0.04845088991 | D29: 325
A30: 2014-03-31 | B30: 2760 | C30: =SUM(B30-B29)/B29 -> -0.04399030135 | D30: 305
A31: 2015-03-31 | B31: 2910 | C31: =SUM(B31-B30)/B30 -> 0.05434782609 | D31: 356
A32: 2016-03-31 | B32: 2862 | C32: =SUM(B32-B31)/B31 -> -0.01649484536 | D32: 349
A33: 2017-03-31 | B33: 2789 | C33: =SUM(B33-B32)/B32 -> -0.02550663871 | D33: 358
A34: 2018-03-31 | B34: 2820 | C34: =SUM(B34-B33)/B33 -> 0.01111509502 | D34: 375
A35: 2019-03-31 | B35: 2688 | C35: =SUM(B35-B34)/B34 -> -0.04680851064 | D35: 381
A36: 2019-09-30 | B36: 2652 | C36: =SUM(B36-B35)/B35 -> -0.01339285714 | D36: 386

Sheet 3
A1: Gambling Commission
A2: Industry Statistics - May 2020
A5: 3 | B5: Premises
B8: Active Premises
A9: Reporting Period | B9: Total | C9: % Change | D9: Arcades | E9: Betting | F9: Bingo | G9: Casino
A10: 2009-03-31 | B10: 9656 | D10: N/A | E10: 8872 | F10: 641 | G10: 143
A11: 2010-03-31 | B11: 9459 | C11: -0.0204018227 | D11: N/A | E11: 8822 | F11: 496 | G11: 141
A12: 2011-03-31 | B12: =SUM(D12:G12) -> 12307 | C12: =(B12-B11)/B11 -> 0.30108891 | D12: 2396 | E12: 9067 | F12: 695 | G12: 149
A13: 2012-03-31 | B13: =SUM(D13:G13) -> 12462 | C13: =(B13-B12)/B12 -> 0.01259445844 | D13: 2542 | E13: 9128 | F13: 646 | G13: 146
A14: 2013-03-31 | B14: =SUM(D14:G14) -> 11957 | C14: =(B14-B13)/B13 -> -0.0405231905 | D14: 2033 | E14: 9100 | F14: 680 | G14: 144
A15: 2014-03-31 | B15: =SUM(D15:G15) -> 11999 | C15: =(B15-B14)/B14 -> 0.003512586769 | D15: 2031 | E15: 9111 | F15: 710 | G15: 147
A16: 2015-03-31 | B16: =SUM(D16:G16) -> 11758 | C16: =(B16-B15)/B15 -> -0.02008500708 | D16: 1941 | E16: 8995 | F16: 674 | G16: 148
A17: 2016-03-31 | B17: =SUM(D17:G17) -> 11615 | C17: =(B17-B16)/B16 -> -0.0121619323 | D17: 1894 | E17: 8915 | F17: 654 | G17: 152
A18: 2017-03-31 | B18: =SUM(D18:G18) -> 11404 | C18: =(B18-B17)/B17 -> -0.01816616444 | D18: 1819 | E18: 8800 | F18: 635 | G18: 150
A19: 31/03/2018R | B19: =SUM(D19:G19) -> 11069 | C19: =(B19-B18)/B18 -> -0.02937565766 | D19: 1701 | E19: 8559 | F19: 657 | G19: 152
A20: 31/03/2019R | B20: =SUM(D20:G20) -> 10781 | C20: =(B20-B19)/B19 -> -0.02601861053 | D20: 1656 | E20: 8320 | F20: 651 | G20: 154
A21: 30/09/2019P | B21: =SUM(D21:G21) -> 9745 | C21: =(B21-B20)/B20 -> -0.09609498191 | D21: 1633 | E21: 7315 | F21: 642 | G21: 155

Sheet 4
A1: Gambling Commission
A2: Industry Statistics - May 2020
A5: 4 | B5: Workforce
B8: Workforce
A9: Reporting Period | B9: Total | C9: % Change | D9: Arcades (non-remote) | E9: Betting (non-remote) | F9: Bingo (non-remote) | G9: Casino (non-remote) | H9: Gaming Machine Technical | I9: External Lottery Manager | J9: Remote Casino, Betting & Bingo
A10: 2009-03-31 | B10: 29464 | D10: 29464 | E10: N/A | F10: N/A | G10: N/A | H10: N/A | I10: N/A | J10: N/A
A11: 2010-03-31 | B11: =SUM(D11:J11) -> 129548 | C11: N/A | D11: 24410 | E11: 54956 | F11: 16877 | G11: 17529 | H11: 7602 | I11: 678 | J11: 7496
A12: 2011-03-31 | B12: =SUM(D12:J12) -> 115494 | C12: =(B12-B11)/B11 -> -0.1084848859 | D12: 12844 | E12: 55411 | F12: 18495 | G12: 13949 | H12: 7603 | I12: 754 | J12: 6438
A13: 2012-03-31 | B13: =SUM(D13:J13) -> 113466 | C13: =(B13-B12)/B12 -> -0.01755935373 | D13: 12769 | E13: 55882 | F13: 15829 | G13: 14701 | H13: 7604 | I13: 849 | J13: 5832
A14: 2013-03-31 | B14: =SUM(D14:J14) -> 109980 | C14: =(B14-B13)/B13 -> -0.03072285971 | D14: 11815 | E14: 55332 | F14: 14938 | G14: 15010 | H14: 7313 | I14: 847 | J14: 4725
A15: 2014-03-31 | B15: =SUM(D15:J15) -> 108193 | C15: =(B15-B14)/B14 -> -0.0162484088 | D15: 12075 | E15: 52543 | F15: 14069 | G15: 15611 | H15: 6925 | I15: 1135 | J15: 5835
A16: 2015-03-31 | B16: =SUM(D16:J16) -> 107124 | C16: =(B16-B15)/B15 -> -0.009880491344 | D16: 10980 | E16: 51509 | F16: 13278 | G16: 15569 | H16: 7161 | I16: 982 | J16: 7645
A17: 2016-03-31 | B17: =SUM(D17:J17) -> 107345 | C17: =(B17-B16)/B16 -> 0.00206302976 | D17: 10694 | E17: 53303 | F17: 12831 | G17: 16352 | H17: 6661 | I17: 1131 | J17: 6373
A18: 2017-03-31 | B18: =SUM(D18:J18) -> 107886 | C18: =(B18-B17)/B17 -> 0.005039824864 | D18: 10474 | E18: 52537 | F18: 12704 | G18: 16397 | H18: 6482 | I18: 1091 | J18: 8201
A19: 31/03/2018R | B19: =SUM(D19:J19) -> 108852 | C19: =(B19-B18)/B18 -> 0.008953895779 | D19: 10236 | E19: 53500 | F19: 12425 | G19: 15377 | H19: 6793 | I19: 941 | J19: 9580
A20: 31/03/2019R | B20: =SUM(D20:J20) -> 102647 | C20: =(B20-B19)/B19 -> -0.05700400544 | D20: 10229 | E20: 50065 | F20: 11826 | G20: 13129 | H20: 6468 | I20: 1037 | J20: 9893
A21: 30/09/2019P | B21: =SUM(D21:J21) -> 98174 | C21: =(B21-B20)/B20 -> -0.04357652927 | D21: 10046 | E21: 46123 | F21: 11559 | G21: 12983 | H21: 6583 | I21: 1095 | J21: 9785

Sheet 5
A1: Gambling Commission
A2: Industry Statistics - May 2020
A4: 5
B5: Machines across non-remote sectors
B8: Gross Gambling Yield by Sector (£m) | H8: Gross Gambling Yield by Category (£m)
A9: Reporting Period | B9: Totals | C9: % Change | D9: Arcades | E9: Betting | F9: Bingo | G9: Casino | H9: Totals | I9: % Change | J9: B1 | K9: B2 | L9: B3 | M9: B4 | N9: C | O9: D | P9: Aggregated categories
A10: Apr 2008 - Mar 2009 | B10: =SUM(D10:G10) -> 1868.76 | D10: 480.35 | E10: 1070.99 | F10: 213.53 | G10: 103.89 | H10: =SUM(J10:P10) -> 1868.76 | J10: 103.09 | K10: 1051.46 | L10: 135.49 | M10: 2.86 | N10: 164.47 | O10: 92.16 | P10: 319.23
A11: Apr 2009 - Mar 2010 | B11: =SUM(D11:G11) -> 1963.97 | C11: =(B11-B10)/B10 -> 0.05094822235 | D11: 455.96 | E11: 1182.94 | F11: 209.32 | G11: 115.75 | H11: =SUM(J11:P11) -> 1963.97 | I11: =(H11-H10)/H10 -> 0.05094822235 | J11: 114.69 | K11: 1167.48 | L11: 152.45 | M11: 2.83 | N11: 157.89 | O11: 84.06 | P11: 284.57
A12: Apr 2010 - Mar 2011 | B12: =SUM(D12:G12) -> 2042.45714 | C12: =(B12-B11)/B11 -> 0.03996351279 | D12: 392.0019132 | E12: 1307.275227 | F12: 224.18 | G12: 119 | H12: =SUM(J12:P12) -> 2042.45714 | I12: =(H12-H11)/H11 -> 0.03996351279 | J12: 117.67 | K12: 1303.61228 | L12: 160.4957218 | M12: 2.201557676 | N12: 164.6209636 | O12: 90.91420599 | P12: 202.9424107
A13: Apr 2011 - Mar 2012 | B13: =SUM(D13:G13) -> 2233.76506 | C13: =(B13-B12)/B12 -> 0.09366557386 | D13: 381.0567524 | E13: 1458.504887 | F13: 265.2598481 | G13: 128.9435728 | H13: =SUM(J13:P13) -> 2233.76506 | I13: =(H13-H12)/H12 -> 0.09366557386 | J13: 126.2744996 | K13: 1458.45413 | L13: 192.1029286 | M13: 1.675462115 | N13: 173.0760928 | O13: 95.1721833 | P13: 187.0097643
A14: Apr 2012 - Mar 2013 | B14: =SUM(D14:G14) -> 2334.810924 | C14: =(B14-B13)/B13 -> 0.04523567201 | D14: 358.7114228 | E14: 1547.69047 | F14: 292.2302829 | G14: 136.1787482 | H14: =SUM(J14:P14) -> 2334.810924 | I14: =(H14-H13)/H13 -> 0.04523567201 | J14: 130.11205 | K14: 1547.828163 | L14: 262.556919 | M14: 1.430751193 | N14: 229.92928 | O14: 105.4226696 | P14: 57.53109095
A15: Apr 2013 - Mar 2014 | B15: =SUM(D15:G15) -> 2398.993265 | C15: =(B15-B14)/B14 -> 0.02748930995 | D15: 379.1054562 | E15: 1569.136638 | F15: 294.859418 | G15: 155.8917529 | H15: =SUM(J15:P15) -> 2398.993265 | I15: =(H15-H14)/H14 -> 0.02748930995 | J15: 145.8783065 | K15: 1577.271298 | L15: 303.2265219 | M15: 0.9449840774 | N15: 220.8960619 | O15: 101.9322236 | P15: 48.84386906
A16: Apr 2014 - Mar 2015 | B16: =SUM(D16:G16) -> 2544.534121 | C16: =(B16-B15)/B15 -> 0.06066747165 | D16: 387.2224149 | E16: 1685.150104 | F16: 303.6448304 | G16: 168.5167722 | H16: =SUM(J16:P16) -> 2544.534121 | I16: =(H16-H15)/H15 -> 0.06066747165 | J16: 157.4959272 | K16: 1692.588287 | L16: 326.7609761 | M16: 1.009410251 | N16: 224.7445272 | O16: 103.053779 | P16: 38.88121451
A17: Apr 2015 - Mar 2016 | B17: =SUM(D17:G17) -> 2677.673444 | C17: =(B17-B16)/B16 -> 0.05232365397 | D17: 418.059798 | E17: 1747.955596 | F17: 316.0550994 | G17: 195.6029504 | H17: =SUM(J17:P17) -> 2677.673444 | I17: =(H17-H16)/H16 -> 0.05232365397 | J17: 181.7831194 | K17: 1760.00317 | L17: 360.0463589 | M17: 1.179127769 | N17: 236.1383691 | O17: 107.0222461 | P17: 31.50105219
A18: Apr 2016 - Mar 2017 | B18: =SUM(D18:G18) -> 2772.957703 | C18: =(B18-B17)/B17 -> 0.03558471983 | D18: 424.9299084 | E18: 1821.903326 | F18: 319.4565443 | G18: 206.6679244 | H18: =SUM(J18:P18) -> 2772.957703 | I18: =(H18-H17)/H17 -> 0.03558471983 | J18: 192.2698179 | K18: 1835.686585 | L18: 399.2205898 | M18: 1.445163714 | N18: 236.4389226 | O18: 106.2618123 | P18: 1.634812325
A19: Apr 2017 - Mar 2018R | B19: =SUM(D19:G19) -> 2793.652137 | C19: =(B19-B18)/B18 -> 0.007462946071 | D19: 424.483953 | E19: 1833.989249 | F19: 323.948562 | G19: 211.230373 | H19: =SUM(J19:P19) -> 2793.652137 | I19: =(H19-H18)/H18 -> 0.007462946071 | J19: 197.092518 | K19: 1689.358373 | L19: 570.037904 | M19: 4.048088 | N19: 239.93148 | O19: 93.183774 | P19: 0
A20: Apr 2018 - Mar 2019R | B20: =SUM(D20:G20) -> 2805.370879 | C20: =(B20-B19)/B19 -> 0.004194774949 | D20: 435.934552 | E20: 1826.192509 | F20: 323.937725 | G20: 219.306093 | H20: =SUM(J20:P20) -> 2805.370879 | I20: =(H20-H19)/H19 -> 0.004194774949 | J20: 206.962251 | K20: 1165.379006 | L20: 1099.293907 | M20: 5.113072 | N20: 247.031232 | O20: 81.591411 | P20: 0
A21: Oct 2018 - Sep 2019P | B21: =SUM(D21:G21) -> 2474.371489 | C21: =(B21-B20)/B20 -> -0.1179877473 | D21: 461.7157966 | E21: 1464.99725 | F21: 324.90998 | G21: 222.748462 | H21: =SUM(J21:P21) -> 2474.371489 | I21: =(H21-H20)/H20 -> -0.1179877473 | J21: 216.5295 | K21: 624.227458 | L21: 1302.157807 | M21: 2.74015967 | N21: 243.6431015 | O21: 85.07346205 | P21: 0
B23: Average number of machines by Sector | H23: Average number of machines by Category
A24: Reporting Period | B24: Totals | C24: % Change | D24: Arcades | E24: Betting | F24: Bingo | G24: Casino | H24: Totals | I24: % Change | J24: B1 | K24: B2 | L24: B3 | M24: B4 | N24: C | O24: D
A25: Apr 2008 - Mar 2009 | B25: =SUM(D25:G25) -> 157023 | D25: 103305 | E25: 31979 | F25: 19212 | G25: 2527 | H25: =SUM(J25:O25) -> 157023 | J25: 2477 | K25: 31484 | L25: 12701 | M25: 587 | N25: 60579 | O25: 49195
A26: Apr 2009 - Mar 2010 | B26: =SUM(D26:G26) -> 149880 | C26: =(B26-B25)/B25 -> -0.04549015112 | D26: 94721 | E26: 34542 | F26: 18069 | G26: 2548 | H26: =SUM(J26:O26) -> 149880 | I26: =(H26-H25)/H25 -> -0.04549015112 | J26: 2499 | K26: 33706 | L26: 13069 | M26: 498 | N26: 52738 | O26: 47370
A27: Apr 2010 - Mar 2011 | B27: =SUM(D27:G27) -> 147760.7186 | C27: =(B27-B26)/B26 -> -0.0141398548 | D27: 87985.15184 | E27: 33248.56672 | F27: 23890 | G27: 2637 | H27: =SUM(J27:O27) -> 147760.7186 | I27: =(H27-H26)/H26 -> -0.0141398548 | J27: 2603 | K27: 32861.97347 | L27: 12716.54441 | M27: 438.3969586 | N27: 49294.06207 | O27: 49846.74165
A28: Apr 2011 - Mar 2012 | B28: =SUM(D28:G28) -> 161287.4295 | C28: =(B28-B27)/B27 -> 0.09154470213 | D28: 85832.61538 | E28: 33545.7068 | F28: 39054.36804 | G28: 2854.739301 | H28: =SUM(J28:O28) -> 161287.4295 | I28: =(H28-H27)/H27 -> 0.09154470213 | J28: 2787.700977 | K28: 33350.3018 | L28: 13495.66156 | M28: 256.1128742 | N28: 46376.57596 | O28: 65021.07636
A29: Apr 2012 - Mar 2013 | B29: =SUM(D29:G29) -> 167614.1697 | C29: =(B29-B28)/B28 -> 0.03922649256 | D29: 84043.19232 | E29: 33515.89343 | F29: 47259.78307 | G29: 2795.300862 | H29: =SUM(J29:O29) -> 167614.1697 | I29: =(H29-H28)/H28 -> 0.03922649256 | J29: 2675.473529 | K29: 33466.92559 | L29: 15653.22088 | M29: 232.0922679 | N29: 49835.1708 | O29: 65751.28662
A30: Apr 2013 - Mar 2014 | B30: =SUM(D30:G30) -> 170639.6464 | C30: =(B30-B29)/B29 -> 0.01805024457 | D30: 82673.67222 | E30: 34483.29939 | F30: 50636.1767 | G30: 2846.498123 | H30: =SUM(J30:O30) -> 170639.6464 | I30: =(H30-H29)/H29 -> 0.01805024457 | J30: 2656.942737 | K30: 34548.78113 | L30: 17303.2184 | M30: 218.7250217 | N30: 61929.57217 | O30: 53982.40697
A31: Apr 2014 - Mar 2015 | B31: =SUM(D31:G31) -> 172792.8574 | C31: =(B31-B30)/B30 -> 0.01261846834 | D31: 78152.917 | E31: 34871.98098 | F31: 56964.26054 | G31: 2803.698889 | H31: =SUM(J31:O31) -> 172792.8574 | I31: =(H31-H30)/H30 -> 0.01261846834 | J31: 2630.49281 | K31: 34949.02545 | L31: 18598.62413 | M31: 311.4300504 | N31: 73004.89597 | O31: 43298.38901
A32: Apr 2015 - Mar 2016 | B32: =SUM(D32:G32) -> 181874.439 | C32: =(B32-B31)/B31 -> 0.0525576217 | D32: 80532.78574 | E32: 34593.61211 | F32: 63756.62517 | G32: 2991.416031 | H32: =SUM(J32:O32) -> 181874.439 | I32: =(H32-H31)/H31 -> 0.0525576217 | J32: 2806.232554 | K32: 34700.52593 | L32: 22375.00052 | M32: 294.5936446 | N32: 76822.46494 | O32: 44875.62146
A33: Apr 2016 - Mar 2017 | B33: =SUM(D33:G33) -> 183188.5944 | C33: =(B33-B32)/B32 -> 0.007225618767 | D33: 78268.11625 | E33: 33895 | F33: 67867.47816 | G33: 3158 | H33: =SUM(J33:O33) -> 183188.5944 | I33: =(H33-H32)/H32 -> 0.007225618767 | J33: 2972 | K33: 34015 | L33: 23599.24473 | M33: 255.839559 | N33: 80300.07242 | O33: 42046.4377
A34: Apr 2017 - Mar 2018R | B34: =SUM(D34:G34) -> 180809.6 | C34: =(B34-B33)/B33 -> -0.01298658585 | D34: 74113 | E34: 33745.6 | F34: 69708 | G34: 3243 | H34: =SUM(J34:O34) -> 180809.6 | I34: =(H34-H33)/H33 -> -0.01298658585 | J34: 3073 | K34: 33855 | L34: 23876 | M34: 231 | N34: 81039.6 | O34: 38735
A35: Apr 2018 - Mar 2019R | B35: =SUM(D35:G35) -> 179766 | C35: =(B35-B34)/B34 -> -0.005771817426 | D35: 72270 | E35: 32777 | F35: 71409 | G35: 3310 | H35: =SUM(J35:O35) -> 179766 | I35: =(H35-H34)/H34 -> -0.005771817426 | J35: 3161 | K35: 32809 | L35: 21593 | M35: 201 | N35: 83016 | O35: 38986
A36: Oct 2018 - Sep 2019P | B36: =SUM(D36:G36) -> 185203 | C36: =(B36-B35)/B35 -> 0.03024487389 | D36: 75564 | E36: 32113 | F36: 74199 | G36: 3327 | H36: =SUM(J36:O36) -> 185203 | I36: =(H36-H35)/H35 -> 0.03024487389 | J36: 3255 | K36: 23441 | L36: 31309 | M36: 189 | N36: 87474 | O36: 39535
A38: Details on gaming machine categorisation are available on our website.
A39: Details on gaming machine entitlement are available on our website.

Sheet 6
A1: Gambling Commission
A2: Industry Statistics - May 2020
A5: 6 | B5: Arcades (non-remote)
B8: Average number of machines | H8: Gross Gambling Yield (£m)
A9: Reporting Period | B9: Total | C9: % Change | D9: B3 | E9: B4 | F9: C | G9: D | H9: Total | I9: % Change | J9: B3 | K9: B4 | L9: C | M9: D | N9: Aggregated categories
A10: Apr 2008 - Mar 2009 | B10: =SUM(D10:G10) -> 103305 | D10: 10018 | E10: 193 | F10: ='6a'!F10+'6b'!D10 -> 45864 | G10: ='6a'!G10+'6b'!E10 -> 47230 | H10: =SUM(J10:N10) -> 454.74 | J10: 93.29 | K10: 0.76 | L10: ='6a'!L10+'6b'!H10 -> 104.73 | M10: ='6a'!M10+'6b'!I10 -> 91.18 | N10: 164.78
A11: Apr 2009 - Mar 2010 | B11: =SUM(D11:G11) -> 94721 | C11: =(B11-B10)/B10 -> -0.08309375151 | D11: 9399 | E11: 170 | F11: ='6a'!F11+'6b'!D11 -> 39454 | G11: ='6a'!G11+'6b'!E11 -> 45698 | H11: =SUM(J11:N11) -> 441.35 | I11: =(H11-H10)/H10 -> -0.02944539737 | J11: 95.91 | K11: 0.57 | L11: ='6a'!L11+'6b'!H11 -> 97.52 | M11: ='6a'!M11+'6b'!I11 -> 82 | N11: 165.35
A12: Apr 2010 - Mar 2011 | B12: =SUM(D12:G12) -> 87985.15184 | C12: =(B12-B11)/B11 -> -0.07111251107 | D12: 8697.8267 | E12: 198.3969587 | F12: ='6a'!F12+'6b'!D12 -> 34264.18653 | G12: ='6a'!G12+'6b'!E12 -> 44824.74165 | H12: =SUM(J12:N12) -> 383.3800665 | I12: =(H12-H11)/H11 -> -0.1313468528 | J12: 100.2742555 | K12: 0.4715576757 | L12: ='6a'!L12+'6b'!H12 -> 92.39864816 | M12: ='6a'!M12+'6b'!I12 -> 85.89420599 | N12: 104.3413992
A13: Apr 2011 - Mar 2012 | B13: =SUM(D13:G13) -> 85832.61538 | C13: =(B13-B12)/B12 -> -0.02446476946 | D13: 8695.047912 | E13: 61.17948616 | F13: ='6a'!F13+'6b'!D13 -> 29859.19606 | G13: ='6a'!G13+'6b'!E13 -> 47217.19193 | H13: =SUM(J13:N13) -> 374.5103763 | I13: =(H13-H12)/H12 -> -0.02313550169 | J13: 113.8450994 | K13: 0.3230575001 | L13: ='6a'!L13+'6b'!H13 -> 91.82324359 | M13: ='6a'!M13+'6b'!I13 -> 87.06785876 | N13: 81.45111708
A14: Apr 2012 - Mar 2013 | B14: =SUM(D14:G14) -> 84043.19232 | C14: =(B14-B13)/B13 -> -0.02084782169 | D14: 9116.69006 | E14: 43.4773894 | F14: ='6a'!F14+'6b'!D14 -> 28541.36166 | G14: ='6a'!G14+'6b'!E14 -> 46341.66321 | H14: =SUM(J14:N14) -> 350.9595941 | I14: =(H14-H13)/H13 -> -0.06288419148 | J14: 124.1215082 | K14: 0.294697539 | L14: ='6a'!L14+'6b'!H14 -> 100.809892 | M14: ='6a'!M14+'6b'!I14 -> 84.92074852 | N14: 40.81274782
A15: Apr 2013 - Mar 2014 | B15: =SUM(D15:G15) -> 82673.67222 | C15: =(B15-B14)/B14 -> -0.0162954317 | D15: 9673.46639 | E15: 68.91236414 | F15: ='6a'!F15+'6b'!D15 -> 30187.30062 | G15: ='6a'!G15+'6b'!E15 -> 42743.99285 | H15: =SUM(J15:N15) -> 371.5132446 | I15: =(H15-H14)/H14 -> 0.0585641506 | J15: 144.4576041 | K15: 0.1879819363 | L15: ='6a'!L15+'6b'!H15 -> 108.857434 | M15: ='6a'!M15+'6b'!I15 -> 82.10131254 | N15: 35.90891209
A16: Apr 2014 - Mar 2015 | B16: =SUM(D16:G16) -> 78152.917 | C16: =(B16-B15)/B15 -> -0.05468192109 | D16: 9773.755362 | E16: 134.6835849 | F16: ='6a'!F16+'6b'!D16 -> 29964.73895 | G16: ='6a'!G16+'6b'!E16 -> 38279.7391 | H16: =SUM(J16:N16) -> 380.9640782 | I16: =(H16-H15)/H15 -> 0.02543875269 | J16: 155.7630598 | K16: 0.3366629896 | L16: ='6a'!L16+'6b'!H16 -> 113.7700571 | M16: ='6a'!M16+'6b'!I16 -> 84.79019431 | N16: 26.30410399
A17: Apr 2015 - Mar 2016 | B17: =SUM(D17:G17) -> 80532.78574 | C17: =(B17-B16)/B16 -> 0.03045143838 | D17: 10680.04327 | E17: 118.464344 | F17: ='6a'!F17+'6b'!D17 -> 31871.34714 | G17: ='6a'!G17+'6b'!E17 -> 37862.93098 | H17: =SUM(J17:N17) -> 412.5208302 | I17: =(H17-H16)/H16 -> 0.08283393064 | J17: 175.6021847 | K17: 0.3835977912 | L17: ='6a'!L17+'6b'!H17 -> 123.805671 | M17: ='6a'!M17+'6b'!I17 -> 88.83708769 | N17: 23.89228902
A18: Apr 2016 - Mar 2017 | B18: =SUM(D18:G18) -> 78268.11625 | C18: =(B18-B17)/B17 -> -0.02812108724 | D18: 11022.98633 | E18: 108.7918204 | F18: ='6a'!F18+'6b'!D18 -> 32485.48512 | G18: ='6a'!G18+'6b'!E18 -> 34650.85298 | H18: =SUM(J18:N18) -> 424.074132 | I18: =(H18-H17)/H17 -> 0.02800659013 | J18: 197.9889963 | K18: 0.4490775081 | L18: ='6a'!L18+'6b'!H18 -> 135.472856 | M18: ='6a'!M18+'6b'!I18 -> 89.61174223 | N18: 0.5514600554
A19: Apr 2017 - Mar 2018R | B19: =SUM(D19:G19) -> 74113 | C19: =(B19-B18)/B18 -> -0.05308823624 | D19: 10662 | E19: 82 | F19: 33501 | G19: 29868 | H19: =SUM(J19:N19) -> 424.483953 | I19: =(H19-H18)/H18 -> 0.0009663899583 | J19: 211.993768 | K19: 0.61835 | L19: 133.448759 | M19: 78.423076 | N19: 0
A20: Apr 2018 - Mar 2019R | B20: =SUM(D20:G20) -> 72270 | C20: =(B20-B19)/B19 -> -0.02486743216 | D20: 10655 | E20: 92 | F20: 32636 | G20: 28887 | H20: =SUM(J20:N20) -> 435.934552 | I20: =(H20-H19)/H19 -> 0.0269753401 | J20: 230.065024 | K20: 0.745013 | L20: 135.868066 | M20: 69.256449 | N20: 0
A21: Oct 2018 - Sep 2019P | B21: =SUM(D21:G21) -> 75564 | C21: =(B21-B20)/B20 -> 0.04557907846 | D21: 11263 | E21: 80 | F21: 34079 | G21: 30142 | H21: =SUM(J21:N21) -> 461.7157966 | I21: =(H21-H20)/H20 -> 0.05914017247 | J21: 246.9775314 | K21: 0.68440467 | L21: 140.8393455 | M21: 73.21451505 | N21: 0
A23: 6a - Adult Gaming Centres
A24: 6b - Licensed family Entertainment Centres

Sheet 6a
A1: Gambling Commission
A2: Industry Statistics - May 2020
A5: 6a | B5: Adult Gaming Centres (non-remote)
B8: Average number of machines | H8: Gross Gambling Yield (£m)
A9: Reporting Period | B9: Total | C9: % Change | D9: B3 | E9: B4 | F9: C | G9: D | H9: Total | I9: % Change | J9: B3 | K9: B4 | L9: C | M9: D | N9: Aggregated categories
A10: Apr 2008 - Mar 2009 | B10: =SUM(D10:G10) -> 72293 | D10: 10018 | E10: 193 | F10: 42373 | G10: 19709 | H10: =SUM(J10:N10) -> 397.87 | J10: 93.29 | K10: 0.76 | L10: 99.09 | M10: 39.95 | N10: 164.78
A11: Apr 2009 - Mar 2010 | B11: =SUM(D11:G11) -> 64476 | C11: =(B11-B10)/B10 -> -0.1081294178 | D11: 9399 | E11: 170 | F11: 35994 | G11: 18913 | H11: =SUM(J11:N11) -> 378.24 | I11: =(H11-H10)/H10 -> -0.04933772338 | J11: 95.91 | K11: 0.57 | L11: 91.9 | M11: 24.51 | N11: 165.35
A12: Apr 2010 - Mar 2011 | B12: =SUM(D12:G12) -> 58496.48631 | C12: =(B12-B11)/B11 -> -0.09274014661 | D12: 8697.8267 | E12: 198.3969587 | F12: 30989.02218 | G12: 18611.24047 | H12: =SUM(J12:N12) -> 315.8800002 | I12: =(H12-H11)/H11 -> -0.1648688658 | J12: 100.2742555 | K12: 0.4715576757 | L12: 86.01961133 | M12: 24.77317653 | N12: 104.3413992
A13: Apr 2011 - Mar 2012 | B13: =SUM(D13:G13) -> 54599.70705 | C13: =(B13-B12)/B12 -> -0.06661561241 | D13: 8695.047912 | E13: 61.17948616 | F13: 27389.79734 | G13: 18453.68231 | H13: =SUM(J13:N13) -> 302.4000806 | I13: =(H13-H12)/H12 -> -0.04267417878 | J13: 113.8450994 | K13: 0.3230575001 | L13: 86.02166661 | M13: 20.75914003 | N13: 81.45111708
A14: Apr 2012 - Mar 2013 | B14: =SUM(D14:G14) -> 52850.67686 | C14: =(B14-B13)/B13 -> -0.03203369175 | D14: 9116.69006 | E14: 43.4773894 | F14: 26035.76086 | G14: 17654.74856 | H14: =SUM(J14:N14) -> 289.0808582 | I14: =(H14-H13)/H13 -> -0.04404503605 | J14: 124.1215082 | K14: 0.294697539 | L14: 96.23094265 | M14: 27.62096192 | N14: 40.81274782
A15: Apr 2013 - Mar 2014 | B15: =SUM(D15:G15) -> 53575.06476 | C15: =(B15-B14)/B14 -> 0.01370631255 | D15: 9673.46639 | E15: 68.91236414 | F15: 28181.94104 | G15: 15650.74497 | H15: =SUM(J15:N15) -> 312.0497349 | I15: =(H15-H14)/H14 -> 0.07945485167 | J15: 144.4576041 | K15: 0.1879819363 | L15: 105.4088291 | M15: 26.08640766 | N15: 35.90891209
A16: Apr 2014 - Mar 2015 | B16: =SUM(D16:G16) -> 52257.45057 | C16: =(B16-B15)/B15 -> -0.02459379549 | D16: 9773.755362 | E16: 134.6835849 | F16: 27685.69425 | G16: 14663.31737 | H16: =SUM(J16:N16) -> 317.3973242 | I16: =(H16-H15)/H15 -> 0.01713697754 | J16: 155.7630598 | K16: 0.3366629896 | L16: 109.6258723 | M16: 25.36762506 | N16: 26.30410399
A17: Apr 2015 - Mar 2016 | B17: =SUM(D17:G17) -> 55279.91667 | C17: =(B17-B16)/B16 -> 0.05783799369 | D17: 10680.04327 | E17: 118.464344 | F17: 29655.76033 | G17: 14825.64872 | H17: =SUM(J17:N17) -> 345.2473 | I17: =(H17-H16)/H16 -> 0.08774483503 | J17: 175.6021847 | K17: 0.3835977912 | L17: 120.0777833 | M17: 25.29144515 | N17: 23.89228902
A18: Apr 2016 - Mar 2017 | B18: =SUM(D18:G18) -> 55750.25086 | C18: =(B18-B17)/B17 -> 0.008508229051 | D18: 11022.98633 | E18: 108.7918204 | F18: 30478.24999 | G18: 14140.22271 | H18: =SUM(J18:N18) -> 359.6184436 | I18: =(H18-H17)/H17 -> 0.04162565099 | J18: 197.9889963 | K18: 0.4490775081 | L18: 131.9646511 | M18: 28.66425871 | N18: 0.5514600554
A19: Apr 2017 - Mar 2018R | B19: =SUM(D19:G19) -> 56922 | C19: =(B19-B18)/B18 -> 0.02101782717 | D19: 10662 | E19: 82 | F19: 31935 | G19: 14243 | H19: =SUM(J19:N19) -> 369.762468 | I19: =(H19-H18)/H18 -> 0.02820774227 | J19: 211.993768 | K19: 0.61835 | L19: 130.779139 | M19: 26.371211 | N19: 0
A20: Apr 2018 - Mar 2019R | B20: =SUM(D20:G20) -> 56940 | C20: =(B20-B19)/B19 -> 0.0003162221988 | D20: 10655 | E20: 92 | F20: 31366 | G20: 14827 | H20: =SUM(J20:N20) -> 386.403809 | I20: =(H20-H19)/H19 -> 0.04500548985 | J20: 230.065024 | K20: 0.745013 | L20: 133.593517 | M20: 22.000255 | N20: 0
A21: Oct 2018 - Sep 2019P | B21: =SUM(D21:G21) -> 59923 | C21: =(B21-B20)/B20 -> 0.0523884791 | D21: 11263 | E21: 80 | F21: 32739 | G21: 15841 | H21: =SUM(J21:N21) -> 409.0058609 | I21: =(H21-H20)/H20 -> 0.05849334653 | J21: 246.9775314 | K21: 0.68440467 | L21: 138.3502379 | M21: 22.99368695 | N21: 0
A23: Details on gaming machine categorisation are available on our website.
A24: Details on gaming machine entitlement are available on our website.

Sheet 6b
A1: Gambling Commission
A2: Industry Statistics - May 2020
A5: 6b | B5: Licensed Family Entertainment Centres (non-remote)
B8: Average number of machines | F8: Gross Gambling Yield (£m)
A9: Reporting Period | B9: Total | C9: % Change | D9: C | E9: D | F9: Total | G9: % Change | H9: C | I9: D | J9: Aggregated categories
A10: Apr 2008 - Mar 2009 | B10: =SUM(D10:E10) -> 31012 | D10: 3491 | E10: 27521 | F10: =SUM(H10:J10) -> 82.48 | H10: 5.64 | I10: 51.23 | J10: 25.61
A11: Apr 2009 - Mar 2010 | B11: =SUM(D11:E11) -> 30245 | C11: =(B11-B10)/B10 -> -0.02473236167 | D11: 3460 | E11: 26785 | F11: =SUM(H11:J11) -> 77.72 | G11: =(F11-F10)/F10 -> -0.05771096023 | H11: 5.62 | I11: 57.49 | J11: 14.61
A12: Apr 2010 - Mar 2011 | B12: =SUM(D12:E12) -> 29488.66553 | C12: =(B12-B11)/B11 -> -0.0250069257 | D12: 3275.164351 | E12: 26213.50118 | F12: =SUM(H12:J12) -> 76.12191295 | G12: =(F12-F11)/F11 -> -0.02056210819 | H12: 6.379036822 | I12: 61.12102946 | J12: 8.621846671
A13: Apr 2011 - Mar 2012 | B13: =SUM(D13:E13) -> 31232.90834 | C13: =(B13-B12)/B12 -> 0.05914960112 | D13: 2469.398718 | E13: 28763.50962 | F13: =SUM(H13:J13) -> 78.65667183 | G13: =(F13-F12)/F12 -> 0.03329867556 | H13: 5.801576976 | I13: 66.30871873 | J13: 6.546376128
A14: Apr 2012 - Mar 2013 | B14: =SUM(D14:E14) -> 31192.51546 | C14: =(B14-B13)/B13 -> -0.001293279364 | D14: 2505.600806 | E14: 28686.91465 | F14: =SUM(H14:J14) -> 69.6305646 | G14: =(F14-F13)/F13 -> -0.114753231 | H14: 4.578949346 | I14: 57.2997866 | J14: 7.751828661
A15: Apr 2013 - Mar 2014 | B15: =SUM(D15:E15) -> 29098.60746 | C15: =(B15-B14)/B14 -> -0.06712853916 | D15: 2005.359579 | E15: 27093.24789 | F15: =SUM(H15:J15) -> 67.05572137 | G15: =(F15-F14)/F14 -> -0.03697863505 | H15: 3.448604881 | I15: 56.01490488 | J15: 7.592211606
A16: Apr 2014 - Mar 2015 | B16: =SUM(D16:E16) -> 25895.46643 | C16: =(B16-B15)/B15 -> -0.1100788427 | D16: 2279.044702 | E16: 23616.42173 | F16: =SUM(H16:J16) -> 69.82509071 | G16: =(F16-F15)/F15 -> 0.04129952358 | H16: 4.144184762 | I16: 59.42256925 | J16: 6.2583367
A17: Apr 2015 - Mar 2016 | B17: =SUM(D17:E17) -> 25252.86907 | C17: =(B17-B16)/B16 -> -0.02481505256 | D17: 2215.586812 | E17: 23037.28226 | F17: =SUM(H17:J17) -> 72.81249802 | G17: =(F17-F16)/F16 -> 0.04278415214 | H17: 3.727887645 | I17: 63.54564255 | J17: 5.538967826
A18: Apr 2016 - Mar 2017 | B18: =SUM(D18:E18) -> 22517.86538 | C18: =(B18-B17)/B17 -> -0.1083046714 | D18: 2007.235121 | E18: 20510.63026 | F18: =SUM(H18:J18) -> 65.31146476 | G18: =(F18-F17)/F17 -> -0.1030184853 | H18: 3.508204866 | I18: 60.94748352 | J18: 0.8557763682
A19: Apr 2017 - Mar 2018R | B19: =SUM(D19:E19) -> 17191 | C19: =(B19-B18)/B18 -> -0.2365617385 | D19: 1566 | E19: 15625 | F19: =SUM(H19:J19) -> 54.721485 | G19: =(F19-F18)/F18 -> -0.1621458009 | H19: 2.66962 | I19: 52.051865 | J19: 0
A20: Apr 2018 - Mar 2019R | B20: =SUM(D20:E20) -> 15330 | C20: =(B20-B19)/B19 -> -0.1082543191 | D20: 1270 | E20: 14060 | F20: =SUM(H20:J20) -> 49.530743 | G20: =(F20-F19)/F19 -> -0.09485747691 | H20: 2.274549 | I20: 47.256194 | J20: 0
A21: Oct 2018 - Sep 2019P | B21: =SUM(D21:E21) -> 15641 | C21: =(B21-B20)/B20 -> 0.02028701892 | D21: 1340 | E21: 14301 | F21: =SUM(H21:J21) -> 52.70993569 | G21: =(F21-F20)/F20 -> 0.06418625075 | H21: 2.48910759 | I21: 50.2208281 | J21: 0
A23: Details on gaming machine categorisation are available on our website.
A24: Details on gaming machine entitlement are available on our website.

Sheet 7
A1: Gambling Commission
A2: Industry Statistics - May 2020
A5: 7 | B5: Betting (non-remote)
B7: Turnover (£m) | H7: Gross Gambling Yield (£m)
A8: Reporting Period | B8: Total | C8: % Change | D8: Off course (Over the counter) | E8: Off course (Gaming machines) | F8: On course | G8: Pool | H8: Total | I8: % Change | J8: Off course (Over the counter) | K8: Off course (Gaming machines) | L8: On course | M8: Pool
A9: Apr 2008 - Mar 2009 | B9: =SUM(D9:G9) -> 10744.34 | D9: 9914.93 | E9: - | F9: 336.05 | G9: 493.36 | H9: =SUM(J9:M9) -> 2903.24 | J9: 1657.99 | K9: 1070.99 | L9: 27.76 | M9: 146.5
A10: Apr 2009 - Mar 2010 | B10: =SUM(D10:G10) -> 10076.3 | C10: =(B10-B9)/B9 -> -0.0621759922 | D10: 9277.82 | E10: - | F10: 337.14 | G10: 461.34 | H10: =SUM(J10:M10) -> 2811.36 | I10: =(H10-H9)/H9 -> -0.03164740083 | J10: 1463.68 | K10: 1182.94 | L10: 29.18 | M10: 135.56
A11: Apr 2010 - Mar 2011 | B11: =SUM(D11:G11) -> 9761.712619 | C11: =(B11-B10)/B10 -> -0.03122052548 | D11: 8943.69 | E11: - | F11: 330.5443457 | G11: 487.4782734 | H11: =SUM(J11:M11) -> 2957.321985 | I11: =(H11-H10)/H10 -> 0.05191863904 | J11: 1487.546002 | K11: 1307.275227 | L11: 26.419248 | M11: 136.081508
A12: Apr 2011 - Mar 2012 | B12: =SUM(D12:G12) -> 10096.69826 | C12: =(B12-B11)/B11 -> 0.03431627798 | D12: 9280.258133 | E12: - | F12: 316.9679471 | G12: 499.4721828 | H12: =SUM(J12:M12) -> 3029.593856 | I12: =(H12-H11)/H11 -> 0.02443828275 | J12: 1403.818122 | K12: 1458.504887 | L12: 29.282909 | M12: 137.987938
A13: Apr 2012 - Mar 2013 | B13: =SUM(D13:G13) -> 9920.130867 | C13: =(B13-B12)/B12 -> -0.01748763714 | D13: 9163.967979 | E13: - | F13: 282.9220642 | G13: 473.2408238 | H13: =SUM(J13:M13) -> 3198.598951 | I13: =(H13-H12)/H12 -> 0.05578473659 | J13: 1495.079264 | K13: 1547.69047 | L13: 24.184932 | M13: 131.644285
A14: Apr 2013 - Mar 2014 | B14: =SUM(D14:G14) -> 9757.659835 | C14: =(B14-B13)/B13 -> -0.01637791218 | D14: 8953.878033 | E14: - | F14: 282.2797638 | G14: 521.5020381 | H14: =SUM(J14:M14) -> 3176.765037 | I14: =(H14-H13)/H13 -> -0.006826086791 | J14: 1437.947719 | K14: 1569.136638 | L14: 26.53053 | M14: 143.15015
A15: Apr 2014 - Mar 2015 | B15: =SUM(D15:G15) -> 9639.779584 | C15: =(B15-B14)/B14 -> -0.0120807912 | D15: 8819.163377 | E15: - | F15: 276.2028902 | G15: 544.4133165 | H15: =SUM(J15:M15) -> 3266.907992 | I15: =(H15-H14)/H14 -> 0.02837570746 | J15: 1412.421885 | K15: 1685.150104 | L15: 26.06025905 | M15: 143.2757448
A16: Apr 2015 - Mar 2016 | B16: =SUM(D16:G16) -> 9698.85254 | C16: =(B16-B15)/B15 -> 0.006128040145 | D16: 8896.463924 | E16: - | F16: 280.0996586 | G16: 522.2889578 | H16: =SUM(J16:M16) -> 3318.187093 | I16: =(H16-H15)/H15 -> 0.01569652429 | J16: 1416.472823 | K16: 1747.955596 | L16: 26.96058753 | M16: 126.7980868
A17: Apr 2016 - Mar 2017 | B17: =SUM(D17:G17) -> 9235.395248 | C17: =(B17-B16)/B16 -> -0.04778475499 | D17: 8712.059145 | E17: - | F17: 265.8407989 | G17: 257.4953039 | H17: =SUM(J17:M17) -> 3310.843589 | I17: =(H17-H16)/H16 -> -0.002213107332 | J17: 1398.198298 | K17: 1821.903326 | L17: 26.68864172 | M17: 64.05332267
A18: Apr 2017 - Mar 2018R | B18: =SUM(D18:G18) -> 8789.453441 | C18: =(B18-B17)/B17 -> -0.04828616373 | D18: 8306.585563 | E18: - | F18: 257.429035 | G18: 225.438843 | H18: =SUM(J18:M18) -> 3268.211166 | I18: =(H18-H17)/H17 -> -0.01287660433 | J18: 1349.648768 | K18: 1833.989249 | L18: 26.716868 | M18: 57.856281
A19: Apr 2018 - Mar 2019R | B19: =SUM(D19:G19) -> 8897.26274 | C19: =(B19-B18)/B18 -> 0.01226575688 | D19: 8435.03946 | E19: - | F19: 248.2633 | G19: 213.95998 | H19: =SUM(J19:M19) -> 3261.404757 | I19: =(H19-H18)/H18 -> -0.002082609922 | J19: 1352.085487 | K19: 1826.192509 | L19: 28.392289 | M19: 54.734472
A20: Oct 2018 - Sep 2019P | B20: =SUM(D20:G20) -> 8394.684279 | C20: =(B20-B19)/B19 -> -0.05648686295 | D20: 7986.572628 | E20: - | F20: 251.936299 | G20: 156.175352 | H20: =SUM(J20:M20) -> 2811.669076 | I20: =(H20-H19)/H19 -> -0.1378963099 | J20: 1277.374686 | K20: 1464.99725 | L20: 29.607373 | M20: 39.689767
A22: 7a - Off Course Betting
A23: 7b - On Course Betting
A24: 7c - Pool Betting
A25: 7d - Gaming Machines in betting premises
A27: Changes to the pool betting licensing arrangements and our returns reporting requirements.

Sheet 7a
A1: Gambling Commission
A2: Industry Statistics - May 2020
A5: 7a | B5: Off Course Betting (over the counter) (non-remote)
B8: Turnover (£m) | I8: Gross Gambling Yield (£m)
A9: Reporting Period | B9: Total | C9: % Change | D9: Dogs | E9: Football | F9: Horses | G9: Numbers | H9: Other | I9: Total | J9: % Change | K9: Dogs | L9: Football | M9: Horses | N9: Numbers | O9: Other
A10: Apr 2008 - Mar 2009 | B10: =SUM(D10:H10) -> 9914.93 | D10: 1580.5 | E10: 941.73 | F10: 5743.51 | G10: 870.79 | H10: 778.4 | I10: =SUM(K10:O10) -> 1657.99 | K10: 303.95 | L10: 224.94 | M10: 843.79 | N10: 166.3 | O10: 119.01
A11: Apr 2009 - Mar 2010 | B11: =SUM(D11:H11) -> 9277.82 | C11: =(B11-B10)/B10 -> -0.06425763974 | D11: 1405.15 | E11: 954.98 | F11: 5442.78 | G11: 854.13 | H11: 620.78 | I11: =SUM(K11:O11) -> 1463.68 | J11: =(I11-I10)/I10 -> -0.117196123 | K11: 279.89 | L11: 155.29 | M11: 768.42 | N11: 167.14 | O11: 92.94
A12: Apr 2010 - Mar 2011 | B12: =SUM(D12:H12) -> 8943.69 | C12: =(B12-B11)/B11 -> -0.03601384808 | D12: 1364.31 | E12: 1031.13 | F12: 5153.82 | G12: 836.6 | H12: 557.83 | I12: =SUM(K12:O12) -> 1487.546002 | J12: =(I12-I11)/I11 -> 0.01630547797 | K12: 261.070541 | L12: 273.948179 | M12: 704.779534 | N12: 170.231936 | O12: 77.515812
A13: Apr 2011 - Mar 2012 | B13: =SUM(D13:H13) -> 9280.258133 | C13: =(B13-B12)/B12 -> 0.03763190953 | D13: 1345.425948 | E13: 1014.884742 | F13: 5300.903166 | G13: 856.0659272 | H13: 762.9783496 | I13: =SUM(K13:O13) -> 1403.818122 | J13: =(I13-I12)/I12 -> -0.05628590974 | K13: 242.626893 | L13: 233.614317 | M13: 675.342422 | N13: 158.815479 | O13: 93.419011
A14: Apr 2012 - Mar 2013 | B14: =SUM(D14:H14) -> 9163.967979 | C14: =(B14-B13)/B13 -> -0.01253091798 | D14: 1323.541664 | E14: 1160.568462 | F14: 5084.195323 | G14: 955.649403 | H14: 640.0131276 | I14: =SUM(K14:O14) -> 1495.079264 | J14: =(I14-I13)/I13 -> 0.06500923486 | K14: 236.835909 | L14: 292.557804 | M14: 696.746631 | N14: 186.32647 | O14: 82.61245
A15: Apr 2013 - Mar 2014 | B15: =SUM(D15:H15) -> 8953.878033 | C15: =(B15-B14)/B14 -> -0.02292565258 | D15: 1273.403127 | E15: 1167.8001 | F15: 4894.012434 | G15: 996.237483 | H15: 622.4248899 | I15: =SUM(K15:O15) -> 1437.947719 | J15: =(I15-I14)/I14 -> -0.03821305423 | K15: 235.417118 | L15: 242.518485 | M15: 679.521481 | N15: 206.346953 | O15: 74.143682
A16: Apr 2014 - Mar 2015 | B16: =SUM(D16:H16) -> 8819.163377 | C16: =(B16-B15)/B15 -> -0.01504539768 | D16: 1223.572678 | E16: 1323.743683 | F16: 4804.364647 | G16: 982.6093577 | H16: 484.8730116 | I16: =SUM(K16:O16) -> 1412.421885 | J16: =(I16-I15)/I15 -> -0.01775157304 | K16: 221.4521897 | L16: 281.9271215 | M16: 641.3494332 | N16: 196.9417136 | O16: 70.75142709
A17: Apr 2015 - Mar 2016 | B17: =SUM(D17:H17) -> 8896.463924 | C17: =(B17-B16)/B16 -> 0.008765065726 | D17: 1220.89269 | E17: 1299.055023 | F17: 4804.770656 | G17: 1007.781786 | H17: 563.9637697 | I17: =SUM(K17:O17) -> 1416.472823 | J17: =(I17-I16)/I16 -> 0.002868079073 | K17: 209.2826199 | L17: 330.655763 | M17: 600.4455639 | N17: 190.6830507 | O17: 85.40582519
A18: Apr 2016 - Mar 2017 | B18: =SUM(D18:H18) -> 8712.059145 | C18: =(B18-B17)/B17 -> -0.02072787351 | D18: 1152.188029 | E18: 1385.227119 | F18: 4537.886606 | G18: 985.4561861 | H18: 651.3012052 | I18: =SUM(K18:O18) -> 1398.198298 | J18: =(I18-I17)/I17 -> -0.01290142947 | K18: 207.7452276 | L18: 296.4584949 | M18: 583.0634392 | N18: 202.8994366 | O18: 108.0317001
A19: Apr 2017 - Mar 2018R | B19: =SUM(D19:H19) -> 8306.585563 | C19: =(B19-B18)/B18 -> -0.0465416471 | D19: 1044.130353 | E19: 1274.277572 | F19: 4391.496304 | G19: 975.901974 | H19: 620.77936 | I19: =SUM(K19:O19) -> 1349.648768 | J19: =(I19-I18)/I18 -> -0.03472292201 | K19: 174.288486 | L19: 316.694006 | M19: 550.641032 | N19: 186.09502 | O19: 121.930224
A20: Apr 2018 - Mar 2019R | B20: =SUM(D20:H20) -> 8435.03946 | C20: =(B20-B19)/B19 -> 0.01546410327 | D20: 941.661598 | E20: 1799.964084 | F20: 4186.655036 | G20: 954.704968 | H20: 552.053774 | I20: =SUM(K20:O20) -> 1352.085487 | J20: =(I20-I19)/I19 -> 0.001805446763 | K20: 147.539313 | L20: 409.995044 | M20: 513.72185 | N20: 181.576081 | O20: 99.253199
A21: Oct 2018 - Sep 2019P | B21: =SUM(D21:H21) -> 7986.572628 | C21: =(B21-B20)/B20 -> -0.05316712911 | D21: 1008.194274 | E21: 1295.400358 | F21: 4216.114879 | G21: 998.116454 | H21: 468.746663 | I21: =SUM(K21:O21) -> 1277.374686 | J21: =(I21-I20)/I20 -> -0.05525597436 | K21: 155.555125 | L21: 318.43695 | M21: 526.200886 | N21: 184.351997 | O21: 92.829728

Sheet 7b
A1: Gambling Commission
A2: Industry Statistics - May 2020
A5: 7b | B5: On Course Betting (non-remote)
B8: Turnover (£m) | G8: Gross Gambling Yield (£m)
A9: Reporting Period | B9: Total | C9: % Change | D9: Dogs | E9: Horses | F9: Other | G9: Total | H9: % Change | I9: Dogs | J9: Horses | K9: Other
A10: Apr 2008 - Mar 2009 | B10: =SUM(D10:F10) -> 336.05 | D10: 49.3 | E10: 278.98 | F10: 7.77 | G10: =SUM(I10:K10) -> 27.76 | I10: 3.85 | J10: 23.17 | K10: 0.74
A11: Apr 2009 - Mar 2010 | B11: =SUM(D11:F11) -> 337.14 | C11: =(B11-B10)/B10 -> 0.003243564946 | D11: 41.64 | E11: 282.99 | F11: 12.51 | G11: =SUM(I11:K11) -> 29.18 | H11: =(G11-G10)/G10 -> 0.05115273775 | I11: 3.34 | J11: 24.03 | K11: 1.81
A12: Apr 2010 - Mar 2011 | B12: =SUM(D12:F12) -> 330.5443457 | C12: =(B12-B11)/B11 -> -0.01956354726 | D12: 38.35221751 | E12: 273.821289 | F12: 18.3708392 | G12: =SUM(I12:K12) -> 26.419248 | H12: =(G12-G11)/G11 -> -0.0946111035 | I12: 3.04467 | J12: 21.089783 | K12: 2.284795
A13: Apr 2011 - Mar 2012 | B13: =SUM(D13:F13) -> 316.9679471 | C13: =(B13-B12)/B12 -> -0.04107285061 | D13: 37.30628061 | E13: 255.2266131 | F13: 24.43505346 | G13: =SUM(I13:K13) -> 29.282909 | H13: =(G13-G12)/G12 -> 0.1083929792 | I13: 3.094265 | J13: 21.062803 | K13: 5.125841
A14: Apr 2012 - Mar 2013 | B14: =SUM(D14:F14) -> 282.9220642 | C14: =(B14-B13)/B13 -> -0.1074111224 | D14: 33.34736928 | E14: 238.3518361 | F14: 11.2228588 | G14: =SUM(I14:K14) -> 24.184932 | H14: =(G14-G13)/G13 -> -0.1740939399 | I14: 2.891941 | J14: 18.606023 | K14: 2.686968
A15: Apr 2013 - Mar 2014 | B15: =SUM(D15:F15) -> 282.2797638 | C15: =(B15-B14)/B14 -> -0.002270237723 | D15: 28.94003848 | E15: 241.628187 | F15: 11.71153838 | G15: =SUM(I15:K15) -> 26.53053 | H15: =(G15-G14)/G14 -> 0.09698592496 | I15: 1.964185 | J15: 21.911925 | K15: 2.65442
A16: Apr 2014 - Mar 2015 | B16: =SUM(D16:F16) -> 276.2028902 | C16: =(B16-B15)/B15 -> -0.02152783997 | D16: 25.90289757 | E16: 240.690114 | F16: 9.609878691 | G16: =SUM(I16:K16) -> 26.06025905 | H16: =(G16-G15)/G15 -> -0.01772565228 | I16: 1.793268554 | J16: 21.37771778 | K16: 2.889272717
A17: Apr 2015 - Mar 2016 | B17: =SUM(D17:F17) -> 280.0996586 | C17: =(B17-B16)/B16 -> 0.01410835462 | D17: 26.11611076 | E17: 243.0653517 | F17: 10.91819615 | G17: =SUM(I17:K17) -> 26.96058753 | H17: =(G17-G16)/G16 -> 0.03454794833 | I17: 1.924188326 | J17: 21.70887355 | K17: 3.327525654
A18: Apr 2016 - Mar 2017 | B18: =SUM(D18:F18) -> 265.8407989 | C18: =(B18-B17)/B17 -> -0.05090637996 | D18: 23.94392705 | E18: 230.5940281 | F18: 11.30284375 | G18: =SUM(I18:K18) -> 26.68864172 | H18: =(G18-G17)/G17 -> -0.01008679118 | I18: 2.073446507 | J18: 21.95059371 | K18: 2.664601501
A19: Apr 2017 - Mar 2018R | B19: =SUM(D19:F19) -> 257.429035 | C19: =(B19-B18)/B18 -> -0.03164211046 | D19: 19.888512 | E19: 225.686945 | F19: 11.853578 | G19: =SUM(I19:K19) -> 26.716868 | H19: =(G19-G18)/G18 -> 0.001057614078 | I19: 1.68391 | J19: 21.955285 | K19: 3.077673
A20: Apr 2018 - Mar 2019R | B20: =SUM(D20:F20) -> 248.2633 | C20: =(B20-B19)/B19 -> -0.03560489981 | D20: 16.468861 | E20: 224.454291 | F20: 7.340148 | G20: =SUM(I20:K20) -> 28.392289 | H20: =(G20-G19)/G19 -> 0.06271023235 | I20: 1.632696 | J20: 24.634311 | K20: 2.125282
A21: Oct 2018 - Sep 2019P | B21: =SUM(D21:F21) -> 251.936299 | C21: =(B21-B20)/B20 -> 0.01479477232 | D21: 17.270984 | E21: 227.463333 | F21: 7.201982 | G21: =SUM(I21:K21) -> 29.607373 | H21: =(G21-G20)/G20 -> 0.04279626768 | I21: 1.783105 | J21: 25.724504 | K21: 2.099764

Sheet 7c
A1: Gambling Commission
A2: Industry Statistics - May 2020
A5: 7c | B5: Pool Betting (non-remote)
B8: Turnover (£m) | H8: Gross Gambling Yield (£m)
A9: Reporting Period | B9: Total | C9: % Change | D9: Dogs | E9: Football | F9: Horses | G9: Other | H9: Total | I9: % Change | J9: Dogs | K9: Football | L9: Horses | M9: Other
A10: Apr 2008 - Mar 2009 | B10: =SUM(D10:G10) -> 493.36 | D10: 54.69 | E10: 59.21 | F10: 377.8 | G10: 1.66 | H10: =SUM(J10:M10) -> 146.5 | J10: 14.66 | K10: 46.59 | L10: 85.01 | M10: 0.24
A11: Apr 2009 - Mar 2010 | B11: =SUM(D11:G11) -> 461.34 | C11: =(B11-B10)/B10 -> -0.06490189719 | D11: 48.08 | E11: 56.09 | F11: 355.46 | G11: 1.71 | H11: =SUM(J11:M11) -> 135.56 | I11: =(H11-H10)/H10 -> -0.07467576792 | J11: 13.63 | K11: 43.54 | L11: 78.36 | M11: 0.03
A12: Apr 2010 - Mar 2011 | B12: =SUM(D12:G12) -> 487.4782734 | C12: =(B12-B11)/B11 -> 0.05665728836 | D12: 50.21382955 | E12: 43.96050414 | F12: 392.0303486 | G12: 1.273591111 | H12: =SUM(J12:M12) -> 136.081508 | I12: =(H12-H11)/H11 -> 0.003847064031 | J12: 12.396639 | K12: 39.294864 | L12: 84.452776 | M12: -0.062771
A13: Apr 2011 - Mar 2012 | B13: =SUM(D13:G13) -> 499.4721828 | C13: =(B13-B12)/B12 -> 0.02460398763 | D13: 43.64905063 | E13: 47.02084118 | F13: 408.1324888 | G13: 0.6698021762 | H13: =SUM(J13:M13) -> 137.987938 | I13: =(H13-H12)/H12 -> 0.01400947144 | J13: 12.56677 | K13: 37.416882 | L13: 88.232123 | M13: -0.227837
A14: Apr 2012 - Mar 2013 | B14: =SUM(D14:G14) -> 473.2408238 | C14: =(B14-B13)/B13 -> -0.0525181581 | D14: 42.42591892 | E14: 42.09670688 | F14: 388.7126851 | G14: 0.005512855397 | H14: =SUM(J14:M14) -> 131.644285 | I14: =(H14-H13)/H13 -> -0.04597251826 | J14: 11.931701 | K14: 35.165299 | L14: 84.546242 | M14: 0.001043
A15: Apr 2013 - Mar 2014 | B15: =SUM(D15:G15) -> 521.5020381 | C15: =(B15-B14)/B14 -> 0.1019802433 | D15: 41.49465636 | E15: 42.27843632 | F15: 437.3825643 | G15: 0.3463811446 | H15: =SUM(J15:M15) -> 143.15015 | I15: =(H15-H14)/H14 -> 0.08740117355 | J15: 11.85263 | K15: 30.948707 | L15: 99.996919 | M15: 0.351894
A16: Apr 2014 - Mar 2015 | B16: =SUM(D16:G16) -> 544.4133165 | C16: =(B16-B15)/B15 -> 0.04393324799 | D16: 58.39393195 | E16: 26.56112844 | F16: 459.1502569 | G16: 0.3079992 | H16: =SUM(J16:M16) -> 143.2757448 | I16: =(H16-H15)/H15 -> 0.0008773639438 | J16: 15.64924386 | K16: 19.75814963 | L16: 107.318233 | M16: 0.550118288
A17: Apr 2015 - Mar 2016 | B17: =SUM(D17:G17) -> 522.2889578 | C17: =(B17-B16)/B16 -> -0.04063890067 | D17: 60.39071088 | E17: 11.10171081 | F17: 450.4298759 | G17: 0.3666602 | H17: =SUM(J17:M17) -> 126.7980868 | I17: =(H17-H16)/H16 -> -0.1150066116 | J17: 16.16961363 | K17: 8.02169472 | L17: 102.3250834 | M17: 0.281695063
A18: Apr 2016 - Mar 2017 | B18: =SUM(D18:G18) -> 257.4953039 | C18: =(B18-B17)/B17 -> -0.506986889 | D18: 55.13182656 | E18: 3.952244731 | F18: 197.3814596 | G18: 1.029772985 | H18: =SUM(J18:M18) -> 64.05332267 | I18: =(H18-H17)/H17 -> -0.4948399912 | J18: 14.85467585 | K18: 2.772074462 | L18: 46.25642471 | M18: 0.170147642
A19: Apr 2017 - Mar 2018R | B19: =SUM(D19:G19) -> 225.438843 | C19: =(B19-B18)/B18 -> -0.1244933808 | D19: 38.909593 | E19: 4.804674 | F19: 181.724576 | G19: 0 | H19: =SUM(J19:M19) -> 57.856281 | I19: =(H19-H18)/H18 -> -0.09674816872 | J19: 10.795347 | K19: 3.550858 | L19: 43.510076 | M19: 0
A20: Apr 2018 - Mar 2019R | B20: =SUM(D20:G20) -> 213.95998 | C20: =(B20-B19)/B19 -> -0.05091785802 | D20: 20.916068 | E20: 5.422094 | F20: 187.471041 | G20: 0.150777 | H20: =SUM(J20:M20) -> 54.734472 | I20: =(H20-H19)/H19 -> -0.05395799637 | J20: 6.360398 | K20: 4.195191 | L20: 44.114103 | M20: 0.06478
A21: Oct 2018 - Sep 2019P | B21: =SUM(D21:G21) -> 156.175352 | C21: =(B21-B20)/B20 -> -0.2700721322 | D21: 20.664069 | E21: 5.324311 | F21: 130.052415 | G21: 0.134557 | H21: =SUM(J21:M21) -> 39.689767 | I21: =(H21-H20)/H20 -> -0.2748670892 | J21: 6.337444 | K21: 4.111676 | L21: 29.190189 | M21: 0.050458
A23: Changes to the pool betting licensing arrangements and our returns reporting requirements.

Sheet 7d
A1: Gambling Commission
A2: Industry Statistics - May 2020
A5: 7d | B5: Gaming Machines in betting premises
B8: Average number of machines | G8: Gross Gambling Yield (£m)
A9: Reporting Period | B9: Total | C9: % Change | D9: B2 | E9: B3 | F9: C | G9: Total | H9: % Change | I9: B2 | J9: B3 | K9: C | L9: Aggregated categories
A10: Apr 2008 - Mar 2009 | B10: =SUM(D10:F10) -> 31979 | D10: 31439 | E10: 220 | F10: 320 | G10: =SUM(I10:L10) -> 1070.99 | I10: 1050.71 | J10: 2.46 | K10: 1.64 | L10: 16.18
A11: Apr 2009 - Mar 2010 | B11: =SUM(D11:F11) -> 34542 | C11: =(B11-B10)/B10 -> 0.08014634604 | D11: 33663 | E11: 506 | F11: 373 | G11: =SUM(I11:L11) -> 1182.94 | H11: =(G11-G10)/G10 -> 0.1045294541 | I11: 1166.5 | J11: 7.69 | K11: 1.08 | L11: 7.67
A12: Apr 2010 - Mar 2011 | B12: =SUM(D12:F12) -> 33248.56672 | C12: =(B12-B11)/B11 -> -0.03744523412 | D12: 32831.97347 | E12: 226.7177121 | F12: 189.8755388 | G12: =SUM(I12:L12) -> 1307.275227 | H12: =(G12-G11)/G11 -> 0.1051069598 | I12: 1302.35228 | J12: 2.071466285 | K12: 0.6123154838 | L12: 2.23916484
A13: Apr 2011 - Mar 2012 | B13: =SUM(D13:F13) -> 33545.7068 | C13: =(B13-B12)/B12 -> 0.008936929003 | D13: 33294.02238 | E13: 146.9454372 | F13: 104.7389867 | G13: =SUM(I13:L13) -> 1458.504887 | H13: =(G13-G12)/G12 -> 0.1156831069 | I13: 1455.953581 | J13: 1.764518551 | K13: 0.2481494604 | L13: 0.5386375557
A14: Apr 2012 - Mar 2013 | B14: =SUM(D14:F14) -> 33515.89343 | C14: =(B14-B13)/B13 -> -0.0008887389702 | D14: 33356.09003 | E14: 78.52671246 | F14: 81.27667981 | G14: =SUM(I14:L14) -> 1547.69047 | H14: =(G14-G13)/G13 -> 0.06114863517 | I14: 1542.116131 | J14: 1.643366365 | K14: 0.1933708779 | L14: 3.737601895
A15: Apr 2013 - Mar 2014 | B15: =SUM(D15:F15) -> 34483.29939 | C15: =(B15-B14)/B14 -> 0.02886409605 | D15: 34373.63602 | E15: 58.06499425 | F15: 51.59838106 | G15: =SUM(I15:L15) -> 1569.136638 | H15: =(G15-G14)/G14 -> 0.01385688441 | I15: 1567.70946 | J15: 1.016622227 | K15: 0.1470071976 | L15: 0.2635481712
A16: Apr 2014 - Mar 2015 | B16: =SUM(D16:F16) -> 34871.98098 | C16: =(B16-B15)/B15 -> 0.01127158925 | D16: 34779.90978 | E16: 49.901354 | F16: 42.169845 | G16: =SUM(I16:L16) -> 1685.150104 | H16: =(G16-G15)/G15 -> 0.07393458459 | I16: 1681.747839 | J16: 0.9198428664 | K16: 0.3142449399 | L16: 2.168176733
A17: Apr 2015 - Mar 2016 | B17: =SUM(D17:F17) -> 34593.61211 | C17: =(B17-B16)/B16 -> -0.007982594139 | D17: 34515.59451 | E17: 48.979014 | F17: 29.038583 | G17: =SUM(I17:L17) -> 1747.955596 | H17: =(G17-G16)/G16 -> 0.0372699692 | I17: 1746.19405 | J17: 0.7200626825 | K17: 0.06732005564 | L17: 0.9741628535
A18: Apr 2016 - Mar 2017 | B18: =SUM(D18:F18) -> 33895.27945 | C18: =(B18-B17)/B17 -> -0.02018675167 | D18: 33830.27945 | E18: 38 | F18: 27 | G18: =SUM(I18:L18) -> 1821.903326 | H18: =(G18-G17)/G17 -> 0.04230526805 | I18: 1821.330456 | J18: 0.4492049505 | K18: 0.03704388916 | L18: 0.08662114652
A19: Apr 2017 - Mar 2018R | B19: =SUM(D19:F19) -> 33745.6 | C19: =(B19-B18)/B18 -> -0.004415937985 | D19: 33685 | E19: 31 | F19: 29.6 | G19: =SUM(I19:L19) -> 1833.989249 | H19: =(G19-G18)/G18 -> 0.006633679614 | I19: 1675.220518 | J19: 158.192511 | K19: 0.57622 | L19: 0
A20: Apr 2018 - Mar 2019R | B20: =SUM(D20:F20) -> 32777 | C20: =(B20-B19)/B19 -> -0.02870300128 | D20: 32660 | E20: 114 | F20: 3 | G20: =SUM(I20:L20) -> 1826.192509 | H20: =(G20-G19)/G19 -> -0.004251246295 | I20: 1153.035164 | J20: 671.325627 | K20: 1.831718 | L20: 0
A21: Oct 2018 - Sep 2019P | B21: =SUM(D21:F21) -> 32113 | C21: =(B21-B20)/B20 -> -0.02025810782 | D21: 23370 | E21: 8740 | F21: 3 | G21: =SUM(I21:L21) -> 1464.99725 | H21: =(G21-G20)/G20 -> -0.1977859712 | I21: 618.012233 | J21: 845.190296 | K21: 1.794721 | L21: 0
A23: Details on gaming machine categorisation are available on our website.
A24: Details on gaming machine entitlement are available on our website.

Sheet 8
A1: Gambling Commission
A2: Industry Statistics - May 2020
A5: 8 | B5: Bingo (non-remote)
B7: Turnover (£m) | F7: Gross Gambling Yield (£m)
A8: Reporting Period | B8: Total | C8: % Change | D8: Bingo Games | E8: Gaming Machines | F8: Total | G8: % Change | H8: Bingo Games | I8: Gaming Machines
A9: Apr 2008 - Mar 2009 | B9: 1434.5 | D9: 1434.5 | E9: 0 | F9: =H9+I9 -> 703.11 | H9: 489.58 | I9: 213.53
A10: Apr 2009 - Mar 2010 | B10: 1337.28 | C10: =SUM(B10-B9)/B9 -> -0.06777274312 | D10: 1337.28 | E10: 0 | F10: =H10+I10 -> 627.22 | G10: =SUM(F10-F9)/F9 -> -0.1079347471 | H10: 417.9 | I10: 209.32
A11: Apr 2010 - Mar 2011 | B11: 1273.430861 | C11: =SUM(B11-B10)/B10 -> -0.04774552778 | D11: 1273.430861 | E11: 0 | F11: =H11+I11 -> 625.5776759 | G11: =SUM(F11-F10)/F10 -> -0.002618417978 | H11: 401.3976759 | I11: 224.18
A12: Apr 2011 - Mar 2012 | B12: 1249.250723 | C12: =SUM(B12-B11)/B11 -> -0.01898818236 | D12: 1249.250723 | E12: 0 | F12: =H12+I12 -> 680.6395977 | G12: =SUM(F12-F11)/F11 -> 0.08801772177 | H12: 415.3797495 | I12: 265.2598481
A13: Apr 2012 - Mar 2013 | B13: 1216.488249 | C13: =SUM(B13-B12)/B12 -> -0.0262256998 | D13: 1216.488249 | E13: 0 | F13: =H13+I13 -> 700.9040426 | G13: =SUM(F13-F12)/F12 -> 0.02977265062 | H13: 408.6737598 | I13: 292.2302829
A14: Apr 2013 - Mar 2014 | B14: 1148.905551 | C14: =SUM(B14-B13)/B13 -> -0.05555556955 | D14: 1148.905551 | E14: 0 | F14: =H14+I14 -> 673.4406286 | G14: =SUM(F14-F13)/F13 -> -0.03918284433 | H14: 378.5812107 | I14: 294.859418
A15: Apr 2014 - Mar 2015 | B15: 1116.763457 | C15: =SUM(B15-B14)/B14 -> -0.02797627169 | D15: 1116.763457 | E15: 0 | F15: =H15+I15 -> 679.0238578 | G15: =SUM(F15-F14)/F14 -> 0.008290603316 | H15: 375.3790274 | I15: 303.6448304
A16: Apr 2015 - Mar 2016 | B16: 1108.262163 | C16: =SUM(B16-B15)/B15 -> -0.007612439599 | D16: 1108.262163 | E16: 0 | F16: =H16+I16 -> 693.1050951 | G16: =SUM(F16-F15)/F15 -> 0.0207374707 | H16: 377.0499957 | I16: 316.0550994
A17: Apr 2016 - Mar 2017 | B17: 1089.01981 | C17: =SUM(B17-B16)/B16 -> -0.01736263606 | D17: 1089.01981 | E17: 0 | F17: =H17+I17 -> 684.2787674 | G17: =SUM(F17-F16)/F16 -> -0.01273447238 | H17: 364.8222231 | I17: 319.4565443
A18: Apr 2017 - Mar 2018R | B18: 1024.362787 | C18: =SUM(B18-B17)/B17 -> -0.05937176057 | D18: 1024.362787 | E18: 0 | F18: =H18+I18 -> 680.117079 | G18: =SUM(F18-F17)/F17 -> -0.006081861104 | H18: 356.168517 | I18: 323.948562
A19: Apr 2018 - Mar 2019R | B19: 1024.941006 | C19: =SUM(B19-B18)/B18 -> 0.0005644670105 | D19: 1024.941006 | E19: 0 | F19: =H19+I19 -> 673.305529 | G19: =SUM(F19-F18)/F18 -> -0.01001526092 | H19: 349.367804 | I19: 323.937725
A20: Oct 2018 - Sep 2019P | B20: 1017.977147 | C20: =SUM(B20-B19)/B19 -> -0.006794399833 | D20: 1017.977147 | E20: 0 | F20: =H20+I20 -> 668.950663 | G20: =SUM(F20-F19)/F19 -> -0.006467889855 | H20: 344.040683 | I20: 324.90998
A22: 8a - Bingo Games
A23: 8b - Gaming Machines in bingo premises

Sheet 8a
A1: Gambling Commission
A2: Industry Statistics - May 2020
A5: 8a | B5: Bingo Games (non-remote)
B7: Turnover (£m) | G7: Gross Gambling Yield (£m)
A8: Reporting Period | B8: Total | C8: % Change | D8: Main Stage Bingo | E8: Mechanised Bingo | F8: Prize Bingo | G8: Total | H8: % Change | I8: Main Stage Bingo | J8: Mechanised Bingo | K8: Prize Bingo
A9: Apr 2008 - Mar 2009 | B9: =SUM(D9:F9) -> 1434.5 | D9: 769.65 | E9: 557.93 | F9: 106.92 | G9: =SUM(I9:K9) -> 489.58 | I9: 175.97 | J9: 251.8 | K9: 61.81
A10: Apr 2009 - Mar 2010 | B10: =SUM(D10:F10) -> 1337.28 | C10: =(B10-B9)/B9 -> -0.06777274312 | D10: 712.76 | E10: 571.75 | F10: 52.77 | G10: =SUM(I10:K10) -> 417.9 | H10: =(G10-G9)/G9 -> -0.1464112096 | I10: 149.38 | J10: 239.98 | K10: 28.54
A11: Apr 2010 - Mar 2011 | B11: =SUM(D11:F11) -> 1273.430861 | C11: =(B11-B10)/B10 -> -0.04774552778 | D11: 679.2508606 | E11: 562.47 | F11: 31.71 | G11: =SUM(I11:K11) -> 401.3976759 | H11: =(G11-G10)/G10 -> -0.03948869137 | I11: 137.3176759 | J11: 247.39 | K11: 16.69
A12: Apr 2011 - Mar 2012 | B12: =SUM(D12:F12) -> 1249.250723 | C12: =(B12-B11)/B11 -> -0.01898818236 | D12: 659.5327258 | E12: 564.3217389 | F12: 25.39625854 | G12: =SUM(I12:K12) -> 415.3797495 | H12: =(G12-G11)/G11 -> 0.03483346943 | I12: 134.0265274 | J12: 269.0773478 | K12: 12.27587433
A13: Apr 2012 - Mar 2013 | B13: =SUM(D13:F13) -> 1216.488249 | C13: =(B13-B12)/B12 -> -0.0262256998 | D13: 641.8300889 | E13: 549.2919816 | F13: 25.36617828 | G13: =SUM(I13:K13) -> 408.6737598 | H13: =(G13-G12)/G12 -> -0.01614423856 | I13: 129.0366122 | J13: 267.9378487 | K13: 11.6992988
A14: Apr 2013 - Mar 2014 | B14: =SUM(D14:F14) -> 1148.905551 | C14: =(B14-B13)/B13 -> -0.05555556955 | D14: 614.3205207 | E14: 519.9306215 | F14: 14.65440901 | G14: =SUM(I14:K14) -> 378.5812107 | H14: =(G14-G13)/G13 -> -0.07363464958 | I14: 119.2709378 | J14: 252.1066444 | K14: 7.203628503
A15: Apr 2014 - Mar 2015 | B15: =SUM(D15:F15) -> 1116.763457 | C15: =(B15-B14)/B14 -> -0.02797627169 | D15: 598.8287571 | E15: 507.7690829 | F15: 10.16561734 | G15: =SUM(I15:K15) -> 375.3790274 | H15: =(G15-G14)/G14 -> -0.008458378799 | I15: 121.2887603 | J15: 248.9262827 | K15: 5.163984405
A16: Apr 2015 - Mar 2016 | B16: =SUM(D16:F16) -> 1108.262163 | C16: =(B16-B15)/B15 -> -0.007612439599 | D16: 608.5038759 | E16: 487.2501303 | F16: 12.50815686 | G16: =SUM(I16:K16) -> 377.0499957 | H16: =(G16-G15)/G15 -> 0.004451416177 | I16: 126.6264092 | J16: 245.7106804 | K16: 4.712906017
A17: Apr 2016 - Mar 2017 | B17: =SUM(D17:F17) -> 1089.01981 | C17: =(B17-B16)/B16 -> -0.01736263606 | D17: 611.9949155 | E17: 459.3122225 | F17: 17.71267244 | G17: =SUM(I17:K17) -> 364.8222231 | H17: =(G17-G16)/G16 -> -0.03243010939 | I17: 128.3983801 | J17: 231.7426828 | K17: 4.681160075
A18: Apr 2017 - Mar 2018R | B18: =SUM(D18:F18) -> 1024.362787 | C18: =(B18-B17)/B17 -> -0.05937176057 | D18: 595.08944 | E18: 420.461265 | F18: 8.812082 | G18: =SUM(I18:K18) -> 356.168517 | H18: =(G18-G17)/G17 -> -0.02372033699 | I18: 135.386997 | J18: 215.682312 | K18: 5.099208
A19: Apr 2018 - Mar 2019R | B19: =SUM(D19:F19) -> 1024.941006 | C19: =(B19-B18)/B18 -> 0.0005644670105 | D19: 621.412046 | E19: 393.391089 | F19: 10.137871 | G19: =SUM(I19:K19) -> 349.367804 | H19: =(G19-G18)/G18 -> -0.01909408798 | I19: 142.242247 | J19: 200.717605 | K19: 6.407952
A20: Oct 2018 - Sep 2019P | B20: =SUM(D20:F20) -> 1017.977147 | C20: =(B20-B19)/B19 -> -0.006794399833 | D20: 620.495839 | E20: 383.943609 | F20: 13.537699 | G20: =SUM(I20:K20) -> 344.040683 | H20: =(G20-G19)/G19 -> -0.01524788758 | I20: 139.730762 | J20: 195.96892 | K20: 8.341001

Sheet 8b
A1: Gambling Commission
A2: Industry Statistics - May 2020
A5: 8b | B5: Gaming Machines in bingo premises
B7: Average number of machines | H7: Gross Gambling Yield (£m)
A8: Reporting Period | B8: Total | C8: % Change | D8: B3 | E8: B4 | F8: C | G8: D | H8: Total | I8: % Change | J8: B3 | K8: B4 | L8: C | M8: D | N8: Aggregated categories
A9: Apr 2008 - Mar 2009 | B9: =SUM(D9:G9) -> 19212 | D9: 2458 | E9: 394 | F9: 14395 | G9: 1965 | H9: =SUM(J9:N9) -> 213.53 | J9: 39.69 | K9: 2.1 | L9: 58.1 | M9: 0.98 | N9: 112.66
A10: Apr 2009 - Mar 2010 | B10: =SUM(D10:G10) -> 18069 | C10: =(B10-B9)/B9 -> -0.05949406621 | D10: 3158 | E10: 328 | F10: 12911 | G10: 1672 | H10: =SUM(J10:N10) -> 209.32 | I10: =(H10-H9)/H9 -> -0.01971619913 | J10: 48.77 | K10: 2.26 | L10: 59.29 | M10: 2.06 | N10: 96.94
A11: Apr 2010 - Mar 2011 | B11: =SUM(D11:G11) -> 23890 | C11: =(B11-B10)/B10 -> 0.3221539654 | D11: 3788 | E11: 240 | F11: 14840 | G11: 5022 | H11: =SUM(J11:N11) -> 224.18 | I11: =(H11-H10)/H10 -> 0.07099178292 | J11: 58.08 | K11: 1.73 | L11: 71.61 | M11: 5.02 | N11: 87.74
A12: Apr 2011 - Mar 2012 | B12: =SUM(D12:G12) -> 39054.36804 | C12: =(B12-B11)/B11 -> 0.6347579758 | D12: 4642.909305 | E12: 194.933388 | F12: 16412.64091 | G12: 17803.88444 | H12: =SUM(J12:N12) -> 265.2598481 | I12: =(H12-H11)/H11 -> 0.1832449288 | J12: 76.32478569 | K12: 1.352404615 | L12: 81.00469977 | M12: 8.104324539 | N12: 98.47363353
A13: Apr 2012 - Mar 2013 | B13: =SUM(D13:G13) -> 47259.78307 | C13: =(B13-B12)/B12 -> 0.2101023635 | D13: 6449.012326 | E13: 188.6148785 | F13: 21212.53246 | G13: 19409.62341 | H13: =SUM(J13:N13) -> 292.2302829 | I13: =(H13-H12)/H12 -> 0.1016755265 | J13: 136.4373784 | K13: 1.136053654 | L13: 128.9260171 | M13: 20.50192106 | N13: 5.22891257
A14: Apr 2013 - Mar 2014 | B14: =SUM(D14:G14) -> 50636.1767 | C14: =(B14-B13)/B13 -> 0.07144327392 | D14: 7557.27675 | E14: 149.8126575 | F14: 31690.67317 | G14: 11238.41412 | H14: =SUM(J14:N14) -> 294.859418 | I14: =(H14-H13)/H13 -> 0.008996792089 | J14: 157.3006869 | K14: 0.757002141 | L14: 111.8916208 | M14: 19.83091102 | N14: 5.079197187
A15: Apr 2014 - Mar 2015 | B15: =SUM(D15:G15) -> 56964.26054 | C15: =(B15-B14)/B14 -> 0.1249715965 | D15: 8770.877002 | E15: 176.7464655 | F15: 42997.98717 | G15: 5018.649907 | H15: =SUM(J15:N15) -> 303.6448304 | I15: =(H15-H14)/H14 -> 0.02979525788 | J15: 169.8976762 | K15: 0.6727472615 | L15: 110.6602251 | M15: 18.26358466 | N15: 4.150597081
A16: Apr 2015 - Mar 2016 | B16: =SUM(D16:G16) -> 63756.62517 | C16: =(B16-B15)/B15 -> 0.1192390555 | D16: 11645.72617 | E16: 176.1293006 | F16: 44922.07922 | G16: 7012.690477 | H16: =SUM(J16:N16) -> 316.0550994 | I16: =(H16-H15)/H15 -> 0.04087100402 | J16: 183.7134005 | K16: 0.7955299781 | L16: 112.265378 | M16: 18.18515844 | N16: 1.095632492
A17: Apr 2016 - Mar 2017 | B17: =SUM(D17:G17) -> 67867.47816 | C17: =(B17-B16)/B16 -> 0.06447726777 | D17: 12537.25839 | E17: 147.0477386 | F17: 47787.58731 | G17: 7395.584725 | H17: =SUM(J17:N17) -> 319.4565443 | I17: =(H17-H16)/H16 -> 0.01076218964 | J17: 200.7404106 | K17: 0.996086206 | L17: 100.9290228 | M17: 16.65007002 | N17: 0.1409547545
A18: Apr 2017 - Mar 2018R | B18: =SUM(D18:G18) -> 69708 | C18: =(B18-B17)/B17 -> 0.02711934916 | D18: 13183 | E18: 149 | F18: 47509 | G18: 8867 | H18: =SUM(J18:N18) -> 323.948562 | I18: =(H18-H17)/H17 -> 0.01406143568 | J18: 199.851625 | K18: 3.429738 | L18: 105.906501 | M18: 14.760698 | N18: 0
A19: Apr 2018 - Mar 2019R | B19: =SUM(D19:G19) -> 71409 | C19: =(B19-B18)/B18 -> 0.02440179033 | D19: 10824 | E19: 109 | F19: 50377 | G19: 10099 | H19: =SUM(J19:N19) -> 323.937725 | I19: =(H19-H18)/H18 -> -3.345284181e-05 | J19: 197.903256 | K19: 4.368059 | L19: 109.331448 | M19: 12.334962 | N19: 0
A20: Oct 2018 - Sep 2019P | B20: =SUM(D20:G20) -> 74199 | C20: =(B20-B19)/B19 -> 0.03907070537 | D20: 11305 | E20: 109 | F20: 53392 | G20: 9393 | H20: =SUM(J20:N20) -> 324.90998 | I20: =(H20-H19)/H19 -> 0.00300136392 | J20: 209.986243 | K20: 2.055755 | L20: 101.009035 | M20: 11.858947 | N20: 0
A22: Details on gaming machine categorisation are available on our website.
A23: Details on gaming machine entitlement are available on our website.

Sheet 9
A1: Gambling Commission
A2: Industry Statistics - May 2020
A5: 9 | B5: Casino (non-remote)
B7: Turnover (£m) | F7: Gross Gambling Yield (£m)
A8: Reporting Period | B8: Total | C8: % Change | D8: Casino Games | E8: Gaming Machines | F8: Total | G8: % Change | H8: Casino Games | I8: Gaming Machines
A9: Apr 2008 - Mar 2009 | B9: 4426.08 | D9: 4426.08 | E9: 0 | F9: =H9+I9 -> 796.17 | H9: 692.28 | I9: 103.89
A10: Apr 2009 - Mar 2010 | B10: 4272.47 | C10: =(B10-B9)/B9 -> -0.03470565376 | D10: 4272.47 | E10: 0 | F10: =H10+I10 -> 751.13 | G10: =(F10-F9)/F9 -> -0.05657083286 | H10: 635.38 | I10: 115.75
A11: Apr 2010 - Mar 2011 | B11: 4942.02 | C11: =(B11-B10)/B10 -> 0.1567126276 | D11: 4942.02 | E11: 0 | F11: =H11+I11 -> 797.4257399 | G11: =(F11-F10)/F10 -> 0.06163479012 | H11: 678.4257399 | I11: 119
A12: Apr 2011 - Mar 2012 | B12: 5400.861187 | C12: =(B12-B11)/B11 -> 0.09284486645 | D12: 5400.861187 | E12: 0 | F12: =H12+I12 -> 872.8026478 | G12: =(F12-F11)/F11 -> 0.09452530082 | H12: 743.859075 | I12: 128.9435728
A13: Apr 2012 - Mar 2013 | B13: 6063.099613 | C13: =(B13-B12)/B12 -> 0.1226171906 | D13: 6063.099613 | E13: 0 | F13: =H13+I13 -> 961.4109682 | G13: =(F13-F12)/F12 -> 0.101521599 | H13: 825.23222 | I13: 136.1787482
A14: Apr 2013 - Mar 2014 | B14: 6764.562555 | C14: =(B14-B13)/B13 -> 0.1156937849 | D14: 6764.562555 | E14: 0 | F14: =H14+I14 -> 1111.063823 | G14: =(F14-F13)/F13 -> 0.1556596082 | H14: 955.17207 | I14: 155.8917529
A15: Apr 2014 - Mar 2015 | B15: 7311.124291 | C15: =(B15-B14)/B14 -> 0.08079779463 | D15: 7311.124291 | E15: 0 | F15: =H15+I15 -> 1159.788665 | G15: =(F15-F14)/F14 -> 0.04385422404 | H15: 991.2718924 | I15: 168.5167722
A16: Apr 2015 - Mar 2016 | B16: 7074.682208 | C16: =(B16-B15)/B15 -> -0.03234004421 | D16: 7074.682208 | E16: 0 | F16: =H16+I16 -> 999.3810486 | G16: =(F16-F15)/F15 -> -0.1383076253 | H16: 803.7780982 | I16: 195.6029504
A17: Apr 2016 - Mar 2017 | B17: 7521.400971 | C17: =(B17-B16)/B16 -> 0.06314329746 | D17: 7521.400971 | E17: 0 | F17: =H17+I17 -> 1163.537315 | G17: =(F17-F16)/F16 -> 0.1642579336 | H17: 956.8693901 | I17: 206.6679244
A18: Apr 2017 - Mar 2018R | B18: 7138.715004 | C18: =(B18-B17)/B17 -> -0.05087961254 | D18: 7138.715004 | E18: 0 | F18: =H18+I18 -> 1180.717246 | G18: =(F18-F17)/F17 -> 0.0147652604 | H18: 969.486873 | I18: 211.230373
A19: Apr 2018 - Mar 2019R | B19: 6334.174444 | C19: =(B19-B18)/B18 -> -0.1127010337 | D19: 6334.174444 | E19: 0 | F19: =H19+I19 -> 1058.818831 | G19: =(F19-F18)/F18 -> -0.103240988 | H19: 839.512738 | I19: 219.306093
A20: Oct 2018 - Sep 2019P | B20: 6041.207338 | C20: =(B20-B19)/B19 -> -0.04625182154 | D20: 6041.207338 | E20: 0 | F20: =H20+I20 -> 1052.739379 | G20: =(F20-F19)/F19 -> -0.005741730145 | H20: 829.990917 | I20: 222.748462
A22: 9a - Casino Games
A23: 9b - Gaming Machines in casino premises

Sheet 9a
A1: Gambling Commission
A2: Industry Statistics - May 2020
A5: 9a | B5: Casino Games (non-remote)
B8: Turnover (£m)
A9: Reporting Period | B9: Total | C9: % Change | D9: 3 Card Poker | E9: American Roulette | F9: Blackjack | G9: Casino Stud Poker | H9: Dice | I9: Electronic Gaming | J9: Other | K9: Punto Banco
A10: Apr 2008 - Mar 2009 | B10: =SUM(D10:K10) -> 4426.08 | D10: 204.31 | E10: 2260.77 | F10: 765.35 | G10: 11.84 | H10: 16.8 | I10: 720.27 | J10: 45.32 | K10: 401.42
A11: Apr 2009 - Mar 2010 | B11: =SUM(D11:K11) -> 4272.47 | C11: =(B11-B10)/B10 -> -0.03470565376 | D11: 188.77 | E11: 2132.48 | F11: 736.11 | G11: 10.15 | H11: 13.64 | I11: 701.94 | J11: 62.28 | K11: 427.1
A12: Apr 2010 - Mar 2011 | B12: =SUM(D12:K12) -> 4942.02 | C12: =(B12-B11)/B11 -> 0.1567126276 | D12: 180.86 | E12: 2502.05 | F12: 734.21 | G12: 7.21 | H12: 17.61 | I12: 796.11 | J12: 82.14 | K12: 621.83
A13: Apr 2011 - Mar 2012 | B13: =SUM(D13:K13) -> 5400.861187 | C13: =(B13-B12)/B12 -> 0.09284486645 | D13: 209.0344479 | E13: 2470.405403 | F13: 785.6364913 | G13: 5.109557586 | H13: 31.11920237 | I13: 880.5224851 | J13: 52.58585188 | K13: 966.4477477
A14: Apr 2012 - Mar 2013 | B14: =SUM(D14:K14) -> 6063.099613 | C14: =(B14-B13)/B13 -> 0.1226171906 | D14: 229.4478062 | E14: 2653.69046 | F14: 846.0658458 | G14: 9.117957755 | H14: 19.61495609 | I14: 984.3647337 | J14: 31.30178598 | K14: 1289.496067
A15: Apr 2013 - Mar 2014 | B15: =SUM(D15:K15) -> 6764.562555 | C15: =(B15-B14)/B14 -> 0.1156937849 | D15: 254.2311381 | E15: 2862.230921 | F15: 899.5699824 | G15: 6.760488 | H15: 14.89441636 | I15: 969.5035927 | J15: 37.27635987 | K15: 1720.095656
A16: Apr 2014 - Mar 2015 | B16: =SUM(D16:K16) -> 7311.124291 | C16: =(B16-B15)/B15 -> 0.08079779463 | D16: 266.6652011 | E16: 2754.161104 | F16: 898.4216123 | G16: 22.223713 | H16: 11.40869156 | I16: 1072.913305 | J16: 38.91636946 | K16: 2246.414294
A17: Apr 2015 - Mar 2016 | B17: =SUM(D17:K17) -> 7074.682208 | C17: =(B17-B16)/B16 -> -0.03234004421 | D17: 264.9461497 | E17: 2743.700142 | F17: 932.8254346 | G17: 10.116785 | H17: 14.56477622 | I17: 1192.045321 | J17: 40.8868989 | K17: 1875.5967
A18: Apr 2016 - Mar 2017 | B18: =SUM(D18:K18) -> 7521.400971 | C18: =(B18-B17)/B17 -> 0.06314329746 | D18: 267.443568 | E18: 2737.987967 | F18: 857.0832648 | G18: 15.483676 | H18: 17.54087926 | I18: 1188.058504 | J18: 54.28546874 | K18: 2383.517644
A19: Apr 2017 - Mar 2018R | B19: =SUM(D19:K19) -> 7138.715004 | C19: =(B19-B18)/B18 -> -0.05087961254 | D19: 282.599714 | E19: 2746.871024 | F19: 757.442444 | G19: 0 | H19: 16.885093 | I19: 1209.685067 | J19: 38.154028 | K19: 2087.077634
A20: Apr 2018 - Mar 2019R | B20: =SUM(D20:K20) -> 6334.174444 | C20: =(B20-B19)/B19 -> -0.1127010337 | D20: 277.026052 | E20: 2595.486591 | F20: 789.187281 | G20: 0 | H20: 15.979757 | I20: 1161.108728 | J20: 32.072142 | K20: 1463.313893
A21: Oct 2018 - Sep 2019P | B21: =SUM(D21:K21) -> 6041.207338 | C21: =(B21-B20)/B20 -> -0.04625182154 | D21: 262.345894 | E21: 2523.270136 | F21: 766.051705 | G21: 0 | H21: 15.318248 | I21: 1255.385073 | J21: 32.371309 | K21: 1186.464973
B23: Gross Gambling Yield (£m)
A24: Reporting Period | B24: Total | C24: % Change | D24: 3 Card Poker | E24: American Roulette | F24: Blackjack | G24: Casino Stud Poker | H24: Dice | I24: Electronic Gaming | J24: Other | K24: Punto Banco
A25: Apr 2008 - Mar 2009 | B25: =SUM(D25:K25) -> 692.28 | D25: 37.8 | E25: 321.72 | F25: 148.85 | G25: 2.75 | H25: 3.54 | I25: 101.36 | J25: 9.14 | K25: 67.12
A26: Apr 2009 - Mar 2010 | B26: =SUM(D26:K26) -> 635.38 | C26: =(B26-B25)/B25 -> -0.08219217658 | D26: 35.92 | E26: 286.85 | F26: 144.85 | G26: 2.17 | H26: 2.58 | I26: 98.66 | J26: 9.46 | K26: 54.89
A27: Apr 2010 - Mar 2011 | B27: =SUM(D27:K27) -> 678.4257399 | C27: =(B27-B26)/B26 -> 0.06774802465 | D27: 37.08653901 | E27: 314.0954057 | F27: 143.0013219 | G27: 2.030569374 | H27: 2.997257614 | I27: 107.2614319 | J27: 12.88333088 | K27: 59.06988352
A28: Apr 2011 - Mar 2012 | B28: =SUM(D28:K28) -> 743.859075 | C28: =(B28-B27)/B27 -> 0.09644878024 | D28: 44.164955 | E28: 307.756749 | F28: 155.459021 | G28: 1.326713 | H28: 7.33788 | I28: 121.290592 | J28: 8.111595 | K28: 98.41157
A29: Apr 2012 - Mar 2013 | B29: =SUM(D29:K29) -> 825.23222 | C29: =(B29-B28)/B28 -> 0.1093932275 | D29: 49.429747 | E29: 343.378888 | F29: 184.495324 | G29: 2.148488 | H29: 2.947286 | I29: 131.616112 | J29: 5.585459 | K29: 105.630916
A30: Apr 2013 - Mar 2014 | B30: =SUM(D30:K30) -> 955.17207 | C30: =(B30-B29)/B29 -> 0.1574585272 | D30: 49.852148 | E30: 349.6553 | F30: 189.183138 | G30: 1.862209 | H30: 0.442703 | I30: 135.836905 | J30: 8.678319 | K30: 219.661348
A31: Apr 2014 - Mar 2015 | B31: =SUM(D31:K31) -> 991.2718924 | C31: =(B31-B30)/B30 -> 0.03779405154 | D31: 48.66412424 | E31: 386.448852 | F31: 206.4042229 | G31: 3.737619 | H31: 2.267271461 | I31: 141.803809 | J31: 6.874789798 | K31: 195.071204
A32: Apr 2015 - Mar 2016 | B32: =SUM(D32:K32) -> 803.7780982 | C32: =(B32-B31)/B31 -> -0.1891446693 | D32: 56.4647727 | E32: 349.0401538 | F32: 203.8210222 | G32: 2.721292 | H32: 3.011258438 | I32: 158.332582 | J32: 7.101922884 | K32: 23.28509413
A33: Apr 2016 - Mar 2017 | B33: =SUM(D33:K33) -> 956.8693901 | C33: =(B33-B32)/B32 -> 0.1904646224 | D33: 59.50457693 | E33: 354.6002208 | F33: 180.6522352 | G33: 1.150184999 | H33: 2.7825094 | I33: 164.5431064 | J33: 7.458873084 | K33: 186.1776834
A34: Apr 2017 - Mar 2018R | B34: =SUM(D34:K34) -> 969.486873 | C34: =(B34-B33)/B33 -> 0.01318621223 | D34: 57.381222 | E34: 341.537962 | F34: 168.27206 | G34: 0 | H34: 3.197253 | I34: 171.31744 | J34: -2.806902 | K34: 230.587838
A35: Apr 2018 - Mar 2019R | B35: =SUM(D35:K35) -> 839.512738 | C35: =(B35-B34)/B34 -> -0.1340648735 | D35: 61.489108 | E35: 308.715425 | F35: 173.59758 | G35: 0 | H35: 2.881085 | I35: 171.949469 | J35: -12.201789 | K35: 133.08186
A36: Oct 2018 - Sep 2019P | B36: =SUM(D36:K36) -> 829.990917 | C36: =(B36-B35)/B35 -> -0.01134208043 | D36: 59.502994 | E36: 327.934684 | F36: 160.144624 | G36: 0 | H36: 2.583352 | I36: 178.327352 | J36: -8.365923 | K36: 109.863834
B38: Table Numbers
A39: Reporting Period | B39: Total | C39: % Change | D39: 3 Card Poker | E39: American Roulette | F39: Blackjack | G39: Casino Stud Poker | H39: Dice | I39: Electronic Gaming | J39: Other | K39: Punto Banco
A40: Apr 2008 - Mar 2009 | B40: =SUM(D40:K40) -> 6037 | D40: 250 | E40: 867 | F40: 597 | G40: 66 | H40: 13 | I40: 3958 | J40: 188 | K40: 98
A41: Apr 2009 - Mar 2010 | B41: =SUM(D41:K41) -> 5739 | C41: =(B41-B40)/B40 -> -0.04936226603 | D41: 234 | E41: 823 | F41: 576 | G41: 36 | H41: 17 | I41: 3665 | J41: 277 | K41: 111
A42: Apr 2010 - Mar 2011 | B42: =SUM(D42:K42) -> 5692.319243 | C42: =(B42-B41)/B41 -> -0.008133953128 | D42: 223.909271 | E42: 803.99971 | F42: 556.166836 | G42: 20.498582 | H42: 21.071176 | I42: 3606.673668 | J42: 358 | K42: 102
A43: Apr 2011 - Mar 2012 | B43: =SUM(D43:K43) -> 5962.705414 | C43: =(B43-B42)/B42 -> 0.0475001769 | D43: 232.873736 | E43: 848.418881 | F43: 588.694237 | G43: 11.761625 | H43: 21.454752 | I43: 3924.062692 | J43: 221.906715 | K43: 113.532776
A44: Apr 2012 - Mar 2013 | B44: =SUM(D44:K44) -> 6131.295924 | C44: =(B44-B43)/B43 -> 0.02827416387 | D44: 231.857279 | E44: 869.231913 | F44: 613.215509 | G44: 7.501358 | H44: 16.380791 | I44: 4178.114762 | J44: 79.288262 | K44: 135.70605
A45: Apr 2013 - Mar 2014 | B45: =SUM(D45:K45) -> 5851.899966 | C45: =(B45-B44)/B44 -> -0.04556882614 | D45: 229.946298 | E45: 871.979855 | F45: 603.368921 | G45: 6.008208 | H45: 15.99722 | I45: 3899.610653 | J45: 62.725935 | K45: 162.262876
A46: Apr 2014 - Mar 2015 | B46: =SUM(D46:K46) -> 5563.124101 | C46: =(B46-B45)/B45 -> -0.04934736866 | D46: 234.733329 | E46: 840.32029 | F46: 591.26004 | G46: 10.008207 | H46: 12.010935 | I46: 3642.714786 | J46: 75.794432 | K46: 156.282082
A47: Apr 2015 - Mar 2016 | B47: =SUM(D47:K47) -> 5668.154999 | C47: =(B47-B46)/B46 -> 0.01887984091 | D47: 240.692953 | E47: 859.832613 | F47: 605.635391 | G47: 7.024646 | H47: 13.950661 | I47: 3716.342186 | J47: 67.342403 | K47: 157.334146
A48: Apr 2016 - Mar 2017 | B48: =SUM(D48:K48) -> 5724.040183 | C48: =(B48-B47)/B47 -> 0.009859501665 | D48: 242.660274 | E48: 870.9068493 | F48: 597.2575342 | G48: 2.596347032 | H48: 18.74520548 | I48: 3730.967123 | J48: 99.78356164 | K48: 161.1232877
A49: Apr 2017 - Mar 2018R | B49: =SUM(D49:K49) -> 5641 | C49: =(B49-B48)/B48 -> -0.01450726759 | D49: 249 | E49: 852 | F49: 557 | G49: 0 | H49: 12 | I49: 3727 | J49: 77 | K49: 167
A50: Apr 2018 - Mar 2019R | B50: =SUM(D50:K50) -> 5615 | C50: =(B50-B49)/B49 -> -0.00460911186 | D50: 230 | E50: 820 | F50: 527 | G50: 0 | H50: 11 | I50: 3777 | J50: 92 | K50: 158
A51: Oct 2018 - Sep 2019P | B51: =SUM(D51:K51) -> 5586 | C51: =(B51-B50)/B50 -> -0.005164737311 | D51: 220 | E51: 801 | F51: 521 | G51: 0 | H51: 10 | I51: 3777 | J51: 94 | K51: 163

Sheet 9b
A1: Gambling Commission
A2: Industry Statistics - May 2020
A5: 9b | B5: Gaming Machines in casino premises
B7: Average number of machines | G7: Gross Gambling Yield (£m)
A8: Reporting Period | B8: Total | C8: % Change | D8: B1 | E8: B2 | F8: B3 | G8: Total | H8: % Change | I8: B1 | J8: B2 | K8: B3
A9: Apr 2008 - Mar 2009 | B9: =SUM(D9:F9) -> 2527 | D9: 2477 | E9: 45 | F9: 5 | G9: =SUM(I9:K9) -> 103.89 | I9: 103.09 | J9: 0.75 | K9: 0.05
A10: Apr 2009 - Mar 2010 | B10: =SUM(D10:F10) -> 2548 | C10: =(B10-B9)/B9 -> 0.008310249307 | D10: 2499 | E10: 43 | F10: 6 | G10: =SUM(I10:K10) -> 115.75 | H10: =(G10-G9)/G9 -> 0.1141592069 | I10: 114.69 | J10: 0.98 | K10: 0.08
A11: Apr 2010 - Mar 2011 | B11: =SUM(D11:F11) -> 2637 | C11: =(B11-B10)/B10 -> 0.03492935636 | D11: 2603 | E11: 30 | F11: 4 | G11: =SUM(I11:K11) -> 119 | H11: =(G11-G10)/G10 -> 0.02807775378 | I11: 117.67 | J11: 1.26 | K11: 0.07
A12: Apr 2011 - Mar 2012 | B12: =SUM(D12:F12) -> 2854.739301 | C12: =(B12-B11)/B11 -> 0.08257083845 | D12: 2787.700977 | E12: 56.279423 | F12: 10.758901 | G12: =SUM(I12:K12) -> 128.9435728 | H12: =(G12-G11)/G11 -> 0.08355943565 | I12: 126.2744996 | J12: 2.50054824 | K12: 0.168525
A13: Apr 2012 - Mar 2013 | B13: =SUM(D13:F13) -> 2795.300862 | C13: =(B13-B12)/B12 -> -0.02082096918 | D13: 2675.473529 | E13: 110.835556 | F13: 8.991777 | G13: =SUM(I13:K13) -> 136.1787482 | H13: =(G13-G12)/G12 -> 0.05611117501 | I13: 130.11205 | J13: 5.71203221 | K13: 0.354666
A14: Apr 2013 - Mar 2014 | B14: =SUM(D14:F14) -> 2846.498123 | C14: =(B14-B13)/B13 -> 0.01831547426 | D14: 2656.942737 | E14: 175.145116 | F14: 14.41027 | G14: =SUM(I14:K14) -> 155.8917529 | H14: =(G14-G13)/G13 -> 0.1447583041 | I14: 145.8783065 | J14: 9.561837647 | K14: 0.451608764
A15: Apr 2014 - Mar 2015 | B15: =SUM(D15:F15) -> 2803.698889 | C15: =(B15-B14)/B14 -> -0.01503574995 | D15: 2630.49281 | E15: 169.115669 | F15: 4.09041 | G15: =SUM(I15:K15) -> 168.5167722 | H15: =(G15-G14)/G14 -> 0.08098580674 | I15: 157.4959272 | J15: 10.84044776 | K15: 0.180397236
A16: Apr 2015 - Mar 2016 | B16: =SUM(D16:F16) -> 2991.416031 | C16: =(B16-B15)/B15 -> 0.06695338887 | D16: 2806.232554 | E16: 184.931423 | F16: 0.252054 | G16: =SUM(I16:K16) -> 195.6029504 | H16: =(G16-G15)/G15 -> 0.1607328329 | I16: 181.7831194 | J16: 13.80912004 | K16: 0.010711
A17: Apr 2016 - Mar 2017 | B17: =SUM(D17:F17) -> 3158 | C17: =(B17-B16)/B16 -> 0.0556873291 | D17: 2972 | E17: 185 | F17: 1 | G17: =SUM(I17:K17) -> 206.6679244 | H17: =(G17-G16)/G16 -> 0.05656854344 | I17: 192.2698179 | J17: 14.3561285 | K17: 0.0419780005
A18: Apr 2017 - Mar 2018R | B18: =SUM(D18:F18) -> 3243 | C18: =(B18-B17)/B17 -> 0.02691576947 | D18: 3073 | E18: 170 | F18: 0 | G18: =SUM(I18:K18) -> 211.230373 | H18: =(G18-G17)/G17 -> 0.02207622973 | I18: 197.092518 | J18: 14.137855 | K18: 0
A19: Apr 2018 - Mar 2019R | B19: =SUM(D19:F19) -> 3310 | C19: =(B19-B18)/B18 -> 0.02065988282 | D19: 3161 | E19: 149 | F19: 0 | G19: =SUM(I19:K19) -> 219.306093 | H19: =(G19-G18)/G18 -> 0.03823181243 | I19: 206.962251 | J19: 12.343842 | K19: 0
A20: Oct 2018 - Sep 2019P | B20: =SUM(D20:F20) -> 3327 | C20: =(B20-B19)/B19 -> 0.005135951662 | D20: 3255 | E20: 71 | F20: 1 | G20: =SUM(I20:K20) -> 222.748462 | H20: =(G20-G19)/G19 -> 0.01569664095 | I20: 216.5295 | J20: 6.215225 | K20: 0.003737
A22: Details on gaming machine categorisation are available on our website.
A23: Details on gaming machine entitlement are available on our website.

Sheet 10
A1: Gambling Commission
A2: Industry Statistics - May 2020
A5: 10 | B5: Lotteries (non-remote and remote)
D7: Distribution of Sales (£m) | G7: Contribution by External Lottery Managers
A8: Reporting Period | B8: Sales (£m) | C8: % Change | D8: Balance (to good causes) | E8: Expenses | F8: Prizes | G8: Sales raised by ELMs (£m) | H8: % total sales raised by ELMs
A9: Apr 2008 - Mar 2009 | B9: =SUM(D9:F9) -> 178.675747 | D9: 94.86554335 | E9: 49.54474177 | F9: 34.26546188 | G9: 36.46394133 | H9: =G9/B9 -> 0.204078852
A10: Apr 2009 - Mar 2010 | B10: =SUM(D10:F10) -> 194.9085613 | C10: =(B10-B9)/B9 -> 0.09085068636 | D10: 100.1268209 | E10: 57.89424162 | F10: 36.88749874 | G10: 56.09932759 | H10: =G10/B10 -> 0.2878238248
A11: Apr 2010 - Mar 2011 | B11: =SUM(D11:F11) -> 208.1599395 | C11: =(B11-B10)/B10 -> 0.0679876667 | D11: 102.904335 | E11: 66.52089055 | F11: 38.73471396 | G11: 89.55136355 | H11: =G11/B11 -> 0.4302046001
A12: Apr 2011 - Mar 2012 | B12: =SUM(D12:F12) -> 300.9574391 | C12: =(B12-B11)/B11 -> 0.4457990318 | D12: 127.3877623 | E12: 101.2251143 | F12: 72.34456238 | G12: 184.9531191 | H12: =G12/B12 -> 0.614549086
A13: Apr 2012 - Mar 2013 | B13: =SUM(D13:F13) -> 345.5569497 | C13: =(B13-B12)/B12 -> 0.1481920859 | D13: 142.7522407 | E13: 130.252353 | F13: 72.55235603 | G13: 222.8283188 | H13: =G13/B13 -> 0.6448381922
A14: Apr 2013 - Mar 2014 | B14: =SUM(D14:F14) -> 376.8234674 | C14: =(B14-B13)/B13 -> 0.09048151879 | D14: 162.2522083 | E14: 131.5370443 | F14: 83.03421484 | G14: 263.1134374 | H14: =G14/B14 -> 0.6982405826
A15: Apr 2014 - Mar 2015 | B15: =SUM(D15:F15) -> 446.1289521 | C15: =(B15-B14)/B14 -> 0.1839202987 | D15: 190.6341779 | E15: 159.1048946 | F15: 96.38987961 | G15: 306.6275831 | H15: =G15/B15 -> 0.6873070704
A16: Apr 2015 - Mar 2016 | B16: =SUM(D16:F16) -> 493.3363586 | C16: =(B16-B15)/B15 -> 0.1058156085 | D16: 212.1554016 | E16: 167.6100304 | F16: 113.5709266 | G16: 379.5502264 | H16: =G16/B16 -> 0.7693538491
A17: Apr 2016 - Mar 2017 | B17: =SUM(D17:F17) -> 587.8084304 | C17: =(B17-B16)/B16 -> 0.1914962686 | D17: 255.9527178 | E17: 186.4763344 | F17: 145.3793782 | G17: 459.6186538 | H17: =G17/B17 -> 0.7819191254
A18: Apr 2017 - Mar 2018R | B18: =SUM(D18:F18) -> 684.0902889 | C18: =(B18-B17)/B17 -> 0.1637980224 | D18: 299.20382 | E18: 208.7309823 | F18: 176.1554866 | G18: 533.226208 | H18: =G18/B18 -> 0.7794675887
A19: Apr 2018 - Mar 2019R | B19: =SUM(D19:F19) -> 736.5220366 | C19: =(B19-B18)/B18 -> 0.07664448471 | D19: 332.379608 | E19: 209.4304392 | F19: 194.7119894 | G19: 600.8472426 | H19: =G19/B19 -> 0.8157899054
A20: Oct 2018 - Sep 2019P | B20: =SUM(D20:F20) -> 775.6227487 | C20: =(B20-B19)/B19 -> 0.05308831265 | D20: 344.7317875 | E20: 227.7821823 | F20: 203.108779 | G20: 640.2327541 | H20: =G20/B20 -> 0.825443497

Sheet 11
A1: Gambling Commission
A2: Industry Statistics - May 2020
A4: 11
B5: Remote Casino, Betting & Bingo (RCBB)
B7: Great Britain only data
B8: Turnover (£m) | G8: Gross Gambling Yield (£m) | L8: Accounts (Millions)
A9: Reporting Period | B9: Total | C9: % Change | D9: Betting | E9: Bingo | F9: Casino | G9: Total | H9: % Change | I9: Betting | J9: Bingo | K9: Casino | L9: Funds held in customer accounts | M9: Active number accounts GC Licensed Facilities | N9: New account registrations
A10: Nov 2014 - Mar 2015 | B10: =SUM(D10:F10) -> 12444.23444 | D10: 5352.387059 | E10: 330.5084119 | F10: 6761.338969 | G10: =SUM(I10:K10) -> 1485.47239 | I10: 518.7014187 | J10: 66.97926428 | K10: 899.7917066 | L10: 498.486948 | M10: 21.779135 | N10: 8.972356618
A11: Apr 2015 - Mar 2016 | B11: =SUM(D11:F11) -> 86649.96279 | C11: =(B11-B10)/B10 -> 5.963060943 | D11: 22953.56211 | E11: 1468.812014 | F11: 62227.58867 | G11: =SUM(I11:K11) -> 4230.755876 | H11: =(G11-G10)/G10 -> 1.848087858 | I11: 1743.91306 | J11: 122.4069271 | K11: 2364.435889 | L11: 607.376714 | M11: 23.049999 | N11: 23.93951596
A12: Apr 2016 - Mar 2017 | B12: =SUM(D12:F12) -> 99138.2966 | C12: =(B12-B11)/B11 -> 0.1441239374 | D12: 25955.79414 | E12: 1403.667345 | F12: 71778.83512 | G12: =SUM(I12:K12) -> 4775.182635 | H12: =(G12-G11)/G11 -> 0.1286830945 | I12: 1952.992975 | J12: 161.1504922 | K12: 2661.039168 | L12: 880.05352 | M12: 30.518027 | N12: 32.28442113
A13: Apr 2017 - Mar 2018R | B13: =SUM(D13:F13) -> 110816.9449 | C13: =(B13-B12)/B12 -> 0.1178015835 | D13: 26987.78491 | E13: 1307.742871 | F13: 82521.41715 | G13: =SUM(I13:K13) -> 5355.161141 | H13: =(G13-G12)/G12 -> 0.1214568218 | I13: 2254.250567 | J13: 163.9335229 | K13: 2936.977051 | L13: 803.163101 | M13: 34.223024 | N13: 32.341636
A14: Apr 2018 - Mar 2019R | B14: =SUM(D14:F14) -> 117995.0668 | C14: =(B14-B13)/B13 -> 0.06477458712 | D14: 27727.4233 | E14: 1314.784827 | F14: 88952.85865 | G14: =SUM(I14:K14) -> 5279.835411 | H14: =(G14-G13)/G13 -> -0.01406600628 | I14: 2033.778053 | J14: 176.0907713 | K14: 3069.966587 | L14: 828.471163 | M14: 31.020955 | N14: 33.498496
A15: Oct 2018 - Sep 2019P | B15: =SUM(D15:F15) -> 121332.7426 | C15: =(B15-B14)/B14 -> 0.02828657069 | D15: 27973.33112 | E15: 1415.509679 | F15: 91943.90178 | G15: =SUM(I15:K15) -> 5509.182276 | H15: =(G15-G14)/G14 -> 0.04343826042 | I15: 2121.002112 | J15: 198.0892583 | K15: 3190.090906 | L15: 900.562701 | M15: 30.162449 | N15: 31.527781
B18: Great Britain plus Non-GB data
B19: Turnover (£m) | G19: Gross Gambling Yield (£m) | L19: Accounts (Millions)
A20: Reporting Period | B20: Total | C20: % Change | D20: Betting | E20: Bingo | F20: Casino | G20: Total | H20: % Change | I20: Betting | J20: Bingo | K20: Casino | L20: Funds held in customer accounts | M20: Active number accounts GC Licensed Facilities
A21: Nov 2014 - Mar 2015 | B21: =SUM(D21:F21) -> 13355.17051 | D21: 5553.422954 | E21: 331.2085823 | F21: 7470.538976 | G21: =SUM(I21:K21) -> 1683.166141 | I21: 572.876276 | J21: 67.58917167 | K21: 1042.700693 | L21: 519.070017 | M21: 24.075724
A22: Apr 2015 - Mar 2016 | B22: =SUM(D22:F22) -> 90528.12222 | C22: =(B22-B21)/B21 -> 5.778507405 | D22: 23560.54737 | E22: 1472.765145 | F22: 65494.8097 | G22: =SUM(I22:K22) -> 4523.368942 | H22: =(G22-G21)/G21 -> 1.687416787 | I22: 1871.054509 | J22: 123.2752622 | K22: 2529.03917 | L22: 637.625574 | M22: 24.554961
A23: Apr 2016 - Mar 2017 | B23: =SUM(D23:F23) -> 101603.2011 | C23: =(B23-B22)/B22 -> 0.1223385466 | D23: 26541.56718 | E23: 1408.098971 | F23: 73653.53496 | G23: =SUM(I23:K23) -> 5098.41342 | H23: =(G23-G22)/G22 -> 0.1271274764 | I23: 2093.735899 | J23: 161.0460869 | K23: 2843.631434 | L23: 937.140609 | M23: 32.626508
A24: Apr 2017 - Mar 2018R | B24: =SUM(D24:F24) -> 112881.3623 | C24: =(B24-B23)/B23 -> 0.1110020261 | D24: 27694.81874 | E24: 1311.486044 | F24: 83875.05751 | G24: =SUM(I24:K24) -> 5635.717168 | H24: =(G24-G23)/G23 -> 0.1053864612 | I24: 2436.184624 | J24: 164.595656 | K24: 3034.936888 | L24: 876.803942 | M24: 36.240908
A25: Apr 2018 - Mar 2019R | B25: =SUM(D25:F25) -> 121027.1228 | C25: =(B25-B24)/B24 -> 0.07216213887 | D25: 28547.18265 | E25: 1315.015884 | F25: 91164.9243 | G25: =SUM(I25:K25) -> 5588.139951 | H25: =(G25-G24)/G24 -> -0.008442087365 | I25: 2220.989558 | J25: 176.793624 | K25: 3190.356769 | L25: 910.600227 | M25: 33.484478
A26: Oct 2018 - Sep 2019P | B26: =SUM(D26:F26) -> 124438.3112 | C26: =(B26-B25)/B25 -> 0.02818532151 | D26: 28945.17481 | E26: 1419.340154 | F26: 94073.79623 | G26: =SUM(I26:K26) -> 5783.7546 | H26: =(G26-G25)/G25 -> 0.03500532394 | I26: 2284.641901 | J26: 198.8686325 | K26: 3300.244066 | L26: 965.888077 | M26: 31.574137
A28: 11a - Casino (remote)
A29: 11b - Betting (remote)
A30: 11c - Bingo (remote)

Sheet 11a
A1: Gambling Commission
A2: Industry Statistics - May 2020
A4: 11a
B5: Casino (remote)
B8: Great Britain only remote data
B9: Turnover (£m) | K9: Gross Gambling Yield (£m)
A10: Reporting Period | B10: Total | C10: % Change | D10: Blackjack | E10: Card Game | F10: Other | G10: Poker Peer to Peer | H10: Roulette | I10: Slots | J10: Table Game | K10: Total | L10: % Change | M10: Blackjack | N10: Card Game | O10: Other | P10: Poker Peer to Peer | Q10: Roulette | R10: Slots | S10: Table Game
A11: Nov 2014 - Mar 2015 | B11: =SUM(D11:J11) -> 6761.338969 | D11: 0 | E11: 492.8060864 | F11: 223.1632255 | G11: 0 | H11: 0 | I11: 5171.23166 | J11: 874.1379976 | K11: =SUM(M11:S11) -> 899.7917066 | M11: 0 | N11: 66.44820465 | O11: 59.14641269 | P11: 43.99612235 | Q11: 0 | R11: 594.3133243 | S11: 135.8876426
A12: Apr 2015 - Mar 2016 | B12: =SUM(D12:J12) -> 62227.58867 | C12: =(B12-B11)/B11 -> 8.203441648 | D12: 0 | E12: 8350.186137 | F12: 3464.103039 | G12: 0 | H12: 0 | I12: 34938.8877 | J12: 15474.4118 | K12: =SUM(M12:S12) -> 2364.435889 | L12: =(K12-K11)/K11 -> 1.627759149 | M12: 0 | N12: 184.2285122 | O12: 132.7955621 | P12: 103.6798808 | Q12: 0 | R12: 1559.098206 | S12: 384.6337287
A13: Apr 2016 - Mar 2017 | B13: =SUM(D13:J13) -> 71778.83512 | C13: =(B13-B12)/B12 -> 0.1534889373 | D13: 0 | E13: 8826.133906 | F13: 5055.551568 | G13: 0 | H13: 0 | I13: 41270.1995 | J13: 16626.95015 | K13: =SUM(M13:S13) -> 2661.039168 | L13: =(K13-K12)/K12 -> 0.1254435698 | M13: 0 | N13: 203.9138306 | O13: 175.1022506 | P13: 98.35044692 | Q13: 0 | R13: 1772.705533 | S13: 410.9671071
A14: Apr 2017 - Mar 2018R | B14: =SUM(D14:J14) -> 82521.41715 | C14: =(B14-B13)/B13 -> 0.1496622509 | D14: 2198.944948 | E14: 6528.331547 | F14: 6601.395174 | G14: 0 | H14: 4478.908342 | I14: 50422.81829 | J14: 12291.01885 | K14: =SUM(M14:S14) -> 2936.977049 | L14: =(K14-K13)/K13 -> 0.1036955354 | M14: 50.44275691 | N14: 153.714088 | O14: 214.9578457 | P14: 97.13170355 | Q14: 109.930384 | R14: 2002.098196 | S14: 308.702075
A15: Apr 2018 - Mar 2019R | B15: =SUM(D15:J15) -> 88952.85865 | C15: =(B15-B14)/B14 -> 0.07793663421 | D15: 9181.144154 | E15: 0 | F15: 7185.404318 | G15: 0 | H15: 17785.31422 | I15: 54800.99596 | J15: 0 | K15: =SUM(M15:S15) -> 3069.966587 | L15: =(K15-K14)/K14 -> 0.04528109534 | M15: 210.252933 | N15: 0 | O15: 234.776326 | P15: 95.71684491 | Q15: 419.775278 | R15: 2109.445205 | S15: 0
A16: Oct 2018 - Sep 2019P | B16: =SUM(D16:J16) -> 91943.90178 | C16: =(B16-B15)/B15 -> 0.03362503658 | D16: 8756.072615 | E16: 0 | F16: 7698.728562 | G16: 0 | H16: 18401.69545 | I16: 57087.40515 | J16: 0 | K16: =SUM(M16:S16) -> 3190.090906 | L16: =(K16-K15)/K15 -> 0.03912886868 | M16: 196.0989235 | N16: 0 | O16: 259.8978842 | P16: 94.27182975 | Q16: 430.0067183 | R16: 2209.81555 | S16: 0
B19: Great Britain plus Non-GB remote data (£m)
B20: Turnover (£m) | K20: Gross Gambling Yield (£m)
A21: Reporting Period | B21: Total | C21: % Change | D21: Blackjack | E21: Card Game | F21: Other | G21: Poker Peer to Peer | H21: Roulette | I21: Slots | J21: Table Game | K21: Total | L21: % Change | M21: Blackjack | N21: Card Game | O21: Other | P21: Poker Peer to Peer | Q21: Roulette | R21: Slots | S21: Table Game
A22: Nov 2014 - Mar 2015 | B22: =SUM(D22:J22) -> 7470.538976 | D22: 0 | E22: 544.6172695 | F22: 243.7738842 | G22: 0 | H22: 0 | I22: 5721.668314 | J22: 960.4795088 | K22: =SUM(M22:S22) -> 1042.700693 | M22: 0 | N22: 71.68138561 | O22: 139.1920395 | P22: 49.44202266 | Q22: 0 | R22: 641.7469458 | S22: 140.6382995
A23: Apr 2015 - Mar 2016 | B23: =SUM(D23:J23) -> 65494.8097 | C23: =(B23-B22)/B22 -> 7.767079579 | D23: 0 | E23: 8465.382634 | F23: 3674.376232 | G23: 0 | H23: 0 | I23: 37260.21846 | J23: 16094.83238 | K23: =SUM(M23:S23) -> 2529.03917 | L23: =(K23-K22)/K22 -> 1.425469923 | M23: 0 | N23: 192.3133485 | O23: 212.5395811 | P23: 113.3683482 | Q23: 0 | R23: 1616.720946 | S23: 394.0969466
A24: Apr 2016 - Mar 2017 | B24: =SUM(D24:J24) -> 73653.53496 | C24: =(B24-B23)/B23 -> 0.1245705621 | D24: 0 | E24: 8967.900216 | F24: 5284.279075 | G24: 0 | H24: 0 | I24: 42240.24135 | J24: 17161.11432 | K24: =SUM(M24:S24) -> 2843.631434 | L24: =(K24-K23)/K23 -> 0.1243920092 | M24: 0 | N24: 207.7335703 | O24: 249.2829125 | P24: 102.6153971 | Q24: 0 | R24: 1858.738631 | S24: 425.2609229
A25: Apr 2017 - Mar 2018R | B25: =SUM(D25:J25) -> 83875.05751 | C25: =(B25-B24)/B24 -> 0.1387784382 | D25: 2270.334154 | E25: 6672.108852 | F25: 7169.780827 | G25: 0 | H25: 4532.715334 | I25: 50837.19074 | J25: 12392.9276 | K25: =SUM(M25:S25) -> 3034.936887 | L25: =(K25-K24)/K24 -> 0.06727505242 | M25: 52.860772 | N25: 157.35043 | O25: 245.225547 | P25: 99.14347832 | Q25: 111.1849631 | R25: 2055.494066 | S25: 313.677631
A26: Apr 2018 - Mar 2019R | B26: =SUM(D26:J26) -> 91164.9243 | C26: =(B26-B25)/B25 -> 0.08691340432 | D26: 9366.681153 | E26: 0 | F26: 8446.352498 | G26: 0 | H26: 17949.73588 | I26: 55402.15476 | J26: 0 | K26: =SUM(M26:S26) -> 3190.373312 | L26: =(K26-K25)/K25 -> 0.05121570233 | M26: 216.532612 | N26: 0 | O26: 291.327581 | P26: 97.65948891 | Q26: 426.722856 | R26: 2158.114231 | S26: 0.01654269966
A27: Oct 2018 - Sep 2019P | B27: =SUM(D27:J27) -> 94073.79623 | C27: =(B27-B26)/B26 -> 0.03190779742 | D27: 8874.31794 | E27: 0 | F27: 8913.911061 | G27: 0 | H27: 18555.10623 | I27: 57730.461 | J27: 0 | K27: =SUM(M27:S27) -> 3300.244066 | L27: =(K27-K26)/K26 -> 0.03443821269 | M27: 200.4093955 | N27: 0 | O27: 312.0084829 | P27: 96.35814904 | Q27: 437.2390242 | R27: 2254.229015 | S27: 0

Sheet 11b
A1: Gambling Commission
A2: Industry Statistics - May 2020
A4: 11b
B5: Betting (remote)
B7: Great Britain only data by betting type | L7: Great Britain plus Non-GB data by betting type
B8: Turnover (£m) | G8: Gross Gambling Yield (£m) | L8: Turnover (£m) | Q8: Gross Gambling Yield (£m)
A9: Reporting Period | B9: Total | C9: % Change | D9: Betting | E9: Betting Exchange | F9: Pool Betting | G9: Total | H9: % Change | I9: Betting | J9: Betting Exchange | K9: Pool Betting | L9: Total | M9: % Change | N9: Betting | O9: Betting Exchange | P9: Pool Betting | Q9: Total | R9: % Change | S9: Betting | T9: Betting Exchange | U9: Pool Betting
A10: Nov 2014 - Mar 2015 | B10: =SUM(D10:F10) -> 5352.387059 | D10: 5322.845041 | E10: 0 | F10: 29.5420179 | G10: =SUM(I10:K10) -> 518.7014187 | I10: 456.4385294 | J10: 52.44126617 | K10: 9.821623072 | L10: =SUM(N10:P10) -> 5553.422954 | N10: 5460.642804 | O10: 0 | P10: 92.78014981 | Q10: =SUM(S10:U10) -> 572.876276 | S10: 478.7113373 | T10: 56.87739324 | U10: 37.28754537
A11: Apr 2015 - Mar 2016 | B11: =SUM(D11:F11) -> 22953.56211 | C11: =(B11-B10)/B10 -> 3.288472014 | D11: 22892.84701 | E11: 0 | F11: 60.71509534 | G11: =SUM(I11:K11) -> 1743.91306 | H11: =(G11-G10)/G10 -> 2.362074976 | I11: 1565.750762 | J11: 151.8970736 | K11: 26.2652237 | L11: =SUM(N11:P11) -> 23560.54737 | M11: =(L11-L10)/L10 -> 3.242527098 | N11: 23345.92177 | O11: 0 | P11: 214.6256014 | Q11: =SUM(S11:U11) -> 1871.054509 | R11: =(Q11-Q10)/Q10 -> 2.266070857 | S11: 1625.286671 | T11: 171.8205893 | U11: 73.94724867
A12: Apr 2016 - Mar 2017 | B12: =SUM(D12:F12) -> 25955.79414 | C12: =(B12-B11)/B11 -> 0.1307959094 | D12: 25866.08036 | E12: 0 | F12: 89.71378333 | G12: =SUM(I12:K12) -> 1952.992975 | H12: =(G12-G11)/G11 -> 0.1198912489 | I12: 1748.58249 | J12: 171.5251978 | K12: 32.88528656 | L12: =SUM(N12:P12) -> 26541.56718 | M12: =(L12-L11)/L11 -> 0.1265259149 | N12: 26274.82808 | O12: 0 | P12: 266.7390964 | Q12: =SUM(S12:U12) -> 2093.735899 | R12: =(Q12-Q11)/Q11 -> 0.1190138442 | S12: 1806.648578 | T12: 190.9959081 | U12: 96.09141355
A13: Apr 2017 - Mar 2018R | B13: =SUM(D13:F13) -> 26987.78491 | C13: =(B13-B12)/B12 -> 0.03975955276 | D13: 26899.60064 | E13: 0 | F13: 88.184266 | G13: =SUM(I13:K13) -> 2254.250567 | H13: =(G13-G12)/G12 -> 0.1542543147 | I13: 2056.860798 | J13: 168.8542388 | K13: 28.535531 | L13: =SUM(N13:P13) -> 27694.81874 | M13: =(L13-L12)/L12 -> 0.04345077096 | N13: 27470.45749 | O13: 0 | P13: 224.361249 | Q13: =SUM(S13:U13) -> 2436.184624 | R13: =(Q13-Q12)/Q12 -> 0.1635587012 | S13: 2138.015087 | T13: 195.597951 | U13: 102.571586
A14: Apr 2018 - Mar 2019R | B14: =SUM(D14:F14) -> 27727.4233 | C14: =(B14-B13)/B13 -> 0.02740641358 | D14: 27623.58149 | E14: 0 | F14: 103.841811 | G14: =SUM(I14:K14) -> 2033.778053 | H14: =(G14-G13)/G13 -> -0.09780302068 | I14: 1832.693823 | J14: 167.622282 | K14: 33.461948 | L14: =SUM(N14:P14) -> 28547.18265 | M14: =(L14-L13)/L13 -> 0.03077701729 | N14: 28437.14833 | O14: 0 | P14: 110.034323 | Q14: =SUM(S14:U14) -> 2220.989558 | R14: =(Q14-Q13)/Q13 -> -0.08833282315 | S14: 1992.544102 | T14: 192.102312 | U14: 36.343144
A15: Oct 2018 - Sep 2019P | B15: =SUM(D15:F15) -> 27973.33112 | C15: =(B15-B14)/B14 -> 0.008868758425 | D15: 27870.45545 | E15: 0 | F15: 102.875666 | G15: =SUM(I15:K15) -> 2121.002112 | H15: =(G15-G14)/G14 -> 0.04288769813 | I15: 1926.472387 | J15: 164.005194 | K15: 30.52453046 | L15: =SUM(N15:P15) -> 28945.17481 | M15: =(L15-L14)/L14 -> 0.01394155661 | N15: 28834.67096 | O15: 0 | P15: 110.503853 | Q15: =SUM(S15:U15) -> 2284.641901 | R15: =(Q15-Q14)/Q14 -> 0.0286594518 | S15: 2060.40342 | T15: 189.563787 | U15: 34.67469436
B18: Great Britain only data by betting category
B19: Turnover (£m) | N19: Gross Gambling Yield (£m)
A20: Reporting Period | B20: Total | C20: % Change | D20: Cricket | E20: Dogs | F20: Financials | G20: Football | H20: Golf | I20: Horses | J20: Other | K20: Tennis | L20: Virtual | M20: Unallocated revenue share | N20: Total | O20: % Change | P20: Cricket | Q20: Dogs | R20: Financials | S20: Football | T20: Golf | U20: Horses | V20: Other | W20: Tennis | X20: Virtual | Y20: Unallocated revenue share
A21: Nov 2014 - Mar 2015 | B21: =SUM(D21:M21) -> 5352.387059 | D21: 238.1135825 | E21: 86.48015551 | F21: 56.50069653 | G21: 2119.330401 | H21: 34.92591514 | I21: 1631.013273 | J21: 741.971082 | K21: 444.051953 | L21: 0 | M21: 0 | N21: =SUM(P21:Y21) -> 518.7014187 | P21: 4.217920368 | Q21: 9.01525415 | R21: 3.095185337 | S21: 160.7064733 | T21: 2.616908329 | U21: 115.4689523 | V21: 41.43432551 | W21: 22.79789093 | X21: 0 | Y21: 159.3485085
A22: Apr 2015 - Mar 2016 | B22: =SUM(D22:M22) -> 22953.56211 | C22: =(B22-B21)/B21 -> 3.288472014 | D22: 492.3891276 | E22: 284.3629576 | F22: 234.7529439 | G22: 5890.455252 | H22: 182.4399355 | I22: 5354.419204 | J22: 2136.55133 | K22: 1467.736961 | L22: 0 | M22: 6910.454397 | N22: =SUM(P22:Y22) -> 1743.91306 | O22: =(N22-N21)/N21 -> 2.362074976 | P22: 21.23458641 | Q22: 28.44175722 | R22: 12.70107133 | S22: 577.8031579 | T22: 14.38937603 | U22: 346.0565947 | V22: 156.2398216 | W22: 72.2078341 | X22: 0 | Y22: 514.8388605
A23: Apr 2016 - Mar 2017 | B23: =SUM(D23:M23) -> 25955.79414 | C23: =(B23-B22)/B22 -> 0.1307959094 | D23: 508.2431816 | E23: 443.5054862 | F23: 275.9408034 | G23: 8188.684952 | H23: 194.1599183 | I23: 6403.148485 | J23: 2246.484964 | K23: 1588.903775 | L23: 0 | M23: 6106.722574 | N23: =SUM(P23:Y23) -> 1952.992975 | O23: =(N23-N22)/N22 -> 0.1198912489 | P23: 20.80380128 | Q23: 44.41052249 | R23: 37.03206893 | S23: 663.2459267 | T23: 14.20099417 | U23: 436.1967381 | V23: 159.459954 | W23: 89.95232704 | X23: 0 | Y23: 487.6906418
A24: Apr 2017 - Mar 2018R | B24: =SUM(D24:M24) -> 26987.78491 | C24: =(B24-B23)/B23 -> 0.03975955286 | D24: 749.403255 | E24: 586.268897 | F24: 176.747294 | G24: 10445.72749 | H24: 258.5129701 | I24: 8886.365803 | J24: 2770.448607 | K24: 2342.864777 | L24: 771.445817 | M24: 0 | N24: =SUM(P24:Y24) -> 2254.593363 | O24: =(N24-N23)/N23 -> 0.1544298381 | P24: 31.64679809 | Q24: 55.06253094 | R24: 21.99671931 | S24: 1037.405494 | T24: 14.25144417 | U24: 614.4828007 | V24: 257.1411209 | W24: 144.164861 | X24: 78.441594 | Y24: 0
A25: Apr 2018 - Mar 2019R | B25: =SUM(D25:M25) -> 27727.42096 | C25: =(B25-B24)/B24 -> 0.02740632681 | D25: 709.743884 | E25: 638.535101 | F25: 0 | G25: 10985.42776 | H25: 271.521348 | I25: 9630.869629 | J25: 2652.827523 | K25: 2150.598208 | L25: 687.897505 | M25: 0 | N25: =SUM(P25:Y25) -> 2033.775041 | O25: =(N25-N24)/N24 -> -0.09794152968 | P25: 37.041573 | Q25: 56.65908106 | R25: 0 | S25: 992.506996 | T25: 14.123541 | U25: 522.722327 | V25: 221.3778165 | W25: 120.75061 | X25: 68.593096 | Y25: 0
A26: Oct 2018 - Sep 2019P | B26: =SUM(D26:M26) -> 27973.32922 | C26: =(B26-B25)/B25 -> 0.008868775186 | D26: 810.840224 | E26: 681.227646 | F26: 0 | G26: 10737.67488 | H26: 251.193461 | I26: 9787.157869 | J26: 2885.920087 | K26: 2106.754683 | L26: 712.560376 | M26: 0 | N26: =SUM(P26:Y26) -> 2121.000787 | O26: =(N26-N25)/N25 -> 0.04288859114 | P26: 45.41290764 | Q26: 66.40260465 | R26: 0 | S26: 991.469334 | T26: 15.48497293 | U26: 577.997357 | V26: 225.6557242 | W26: 124.7644021 | X26: 73.81348417 | Y26: 0
B29: Great Britain plus Non-GB data by betting category
B30: Turnover (£m) | N30: Gross Gambling Yield (£m)
A31: Reporting Period | B31: Total | C31: % Change | D31: Cricket | E31: Dogs | F31: Financials | G31: Football | H31: Golf | I31: Horses | J31: Other | K31: Tennis | L31: Virtual | M31: Unallocated revenue share | N31: Total | O31: % Change | P31: Cricket | Q31: Dogs | R31: Financials | S31: Football | T31: Golf | U31: Horses | V31: Other | W31: Tennis | X31: Virtual | Y31: Unallocated revenue share
A32: Nov 2014 - Mar 2015 | B32: =SUM(D32:M32) -> 5553.422954 | D32: 240.1746223 | E32: 95.74818726 | F32: 61.72071128 | G32: 2182.802073 | H32: 36.23657775 | I32: 1681.731147 | J32: 804.5490635 | K32: 450.4605709 | L32: 0 | M32: 0 | N32: =SUM(P32:Y32) -> 572.876276 | P32: 4.306938667 | Q32: 10.97321636 | R32: 3.415242424 | S32: 172.162089 | T32: 2.73116987 | U32: 123.1683392 | V32: 70.60994249 | W32: 23.67943663 | X32: 0 | Y32: 161.8299013
A33: Apr 2015 - Mar 2016 | B33: =SUM(D33:M33) -> 23560.54737 | C33: =(B33-B32)/B32 -> 3.242527098 | D33: 498.7085171 | E33: 294.3151311 | F33: 255.1914032 | G33: 6022.457972 | H33: 186.1755019 | I33: 5479.13891 | J33: 2359.371596 | K33: 1494.071461 | L33: 0 | M33: 6971.116878 | N33: =SUM(P33:Y33) -> 1871.054509 | O33: =(N33-N32)/N32 -> 2.266070857 | P33: 22.09807739 | Q33: 30.50941353 | R33: 13.93046004 | S33: 587.9340546 | T33: 14.6469208 | U33: 362.0920256 | V33: 240.0483575 | W33: 74.89637054 | X33: 0 | Y33: 524.8988293
A34: Apr 2016 - Mar 2017 | B34: =SUM(D34:M34) -> 26541.56718 | C34: =(B34-B33)/B33 -> 0.1265259149 | D34: 514.671688 | E34: 447.8835598 | F34: 290.0303433 | G34: 8328.789403 | H34: 198.6836354 | I34: 6523.748913 | J34: 2492.120178 | K34: 1611.408135 | L34: 0 | M34: 6134.231326 | N34: =SUM(P34:Y34) -> 2093.735899 | O34: =(N34-N33)/N33 -> 0.1190138442 | P34: 21.27537858 | Q34: 45.15739134 | R34: 37.88328515 | S34: 676.9704697 | T34: 14.70136909 | U34: 448.3535859 | V34: 255.0105383 | W34: 91.56673321 | X34: 0 | Y34: 502.817148
A35: Apr 2017 - Mar 2018R | B35: =SUM(D35:M35) -> 27679.243 | C35: =(B35-B34)/B34 -> 0.04286392781 | D35: 761.022961 | E35: 586.296125 | F35: 176.747294 | G35: 10670.29865 | H35: 264.8218282 | I35: 9045.729019 | J35: 3018.747867 | K35: 2369.870534 | L35: 785.7087228 | M35: 0 | N35: =SUM(P35:Y35) -> 2436.186326 | O35: =(N35-N34)/N34 -> 0.1635595144 | P35: 32.26956409 | Q35: 55.84337057 | R35: 22.57800848 | S35: 1057.731553 | T35: 14.38254144 | U35: 627.9849451 | V35: 398.6239223 | W35: 145.9889009 | X35: 80.78352058 | Y35: 0
A36: Apr 2018 - Mar 2019R | B36: =SUM(D36:M36) -> 28547.18058 | C36: =(B36-B35)/B35 -> 0.03135698394 | D36: 716.151208 | E36: 646.485174 | F36: 0 | G36: 11294.50783 | H36: 276.740115 | I36: 9795.997763 | J36: 2913.178628 | K36: 2204.4978 | L36: 699.622056 | M36: 0 | N36: =SUM(P36:Y36) -> 2220.986471 | O36: =(N36-N35)/N35 -> -0.08833472758 | P36: 37.852128 | Q36: 57.70781406 | R36: 0 | S36: 1026.411523 | T36: 14.618003 | U36: 534.522151 | V36: 355.070983 | W36: 124.350241 | X36: 70.45362757 | Y36: 0
A37: Oct 2018 - Sep 2019P | B37: =SUM(D37:M37) -> 28945.17292 | C37: =(B37-B36)/B36 -> 0.01394156388 | D37: 817.179179 | E37: 689.923547 | F37: 0 | G37: 11052.98314 | H37: 256.067563 | I37: 10066.78234 | J37: 3166.157389 | K37: 2171.655692 | L37: 724.424063 | M37: 0 | N37: =SUM(P37:Y37) -> 2276.87561 | O37: =(N37-N36)/N36 -> 0.02516410629 | P37: 46.36733246 | Q37: 67.57029297 | R37: 0 | S37: 1021.401421 | T37: 15.68499195 | U37: 590.9193732 | V37: 328.8613578 | W37: 129.97202 | X37: 76.09882107 | Y37: 0

Sheet 11c
A1: Gambling Commission
A2: Industry Statistics - May 2020
A4: 11c
B5: Bingo (remote)
B7: Great Britain Only data
A8: Reporting Period | B8: Turnover (£m) | C8: % Change | D8: Gross Gambling Yield (£m) | E8: % Change
A9: Nov 2014 - Mar 2015 | B9: 330.5084119 | D9: 66.97926428
A10: Apr 2015 - Mar 2016 | B10: 1468.812014 | C10: =(B10-B9)/B9 -> 3.444098731 | D10: 122.4069271 | E10: =(D10-D9)/D9 -> 0.8275346618
A11: Apr 2016 - Mar 2017 | B11: 1403.667345 | C11: =(B11-B10)/B10 -> -0.04435194452 | D11: 161.1504922 | E11: =(D11-D10)/D10 -> 0.3165144815
A12: Apr 2017 - Mar 2018R | B12: 1307.742871 | C12: =(B12-B11)/B11 -> -0.06833846656 | D12: 163.9335229 | E12: =(D12-D11)/D11 -> 0.0172697624
A13: Apr 2018 - Mar 2019R | B13: 1314.784827 | C13: =(B13-B12)/B12 -> 0.005384816688 | D13: 176.0907713 | E13: =(D13-D12)/D12 -> 0.074159624
A14: Oct 2018 - Sep 2019P | B14: 1415.509679 | C14: =(B14-B13)/B13 -> 0.07660938149 | D14: 198.0892583 | E14: =(D14-D13)/D13 -> 0.1249269726
B17: Great Britain plus Non GB data
A18: Reporting Period | B18: Turnover (£m) | C18: % Change | D18: Gross Gambling Yield (£m) | E18: % Change
A19: Nov 2014 - Mar 2015 | B19: 331.2085823 | D19: 67.58917167
A20: Apr 2015 - Mar 2016 | B20: 1472.765145 | C20: =(B20-B19)/B19 -> 3.446639442 | D20: 123.2752622 | E20: =(D20-D19)/D19 -> 0.823890708
A21: Apr 2016 - Mar 2017 | B21: 1408.098971 | C21: =(B21-B20)/B20 -> -0.04390800126 | D21: 161.0460869 | E21: =(D21-D20)/D20 -> 0.3063941954
A22: Apr 2017 - Mar 2018R | B22: 1311.486044 | C22: =(B22-B21)/B21 -> -0.06861231306 | D22: 164.595656 | E22: =(D22-D21)/D21 -> 0.02204070358
A23: Apr 2018 - Mar 2019R | B23: 1315.015884 | C23: =(B23-B22)/B22 -> 0.002691481174 | D23: 176.793624 | E23: =(D23-D22)/D22 -> 0.07410868757
A24: Oct 2018 - Sep 2019P | B24: 1419.340154 | C24: =(B24-B23)/B23 -> 0.07933308736 | D24: 198.8686325 | E24: =(D24-D23)/D23 -> 0.1248631483

Sheet 12
A1: Gambling Commission
A2: Industry Statistics - May 2020
A5: 12 | B5: The National Lottery (non-remote and remote)
D7: Distribution of Sales (£m)
A8: Reporting Period | B8: Sales (£m) | C8: % Change | D8: Prizes capable of being won by players (including unclaimed prizes) | E8: Primary Contribution | F8: Lottery Duty | G8: Retailers' commission | H8: Retention by Licensee
A9: Apr 2008 - Mar 2009 | B9: =SUM(D9:H9) -> 5149.1 | D9: 2627.6 | E9: 1299.3 | F9: 617.9 | G9: 247.7 | H9: 356.6
A10: Apr 2009 - Mar 2010 | B10: =SUM(D10:H10) -> 5476.5 | C10: =(B10-B9)/B9 -> 0.06358392729 | D10: 2797.3 | E10: 1468.5 | F10: 657.2 | G10: 257.4 | H10: 296.1
A11: Apr 2010 - Mar 2011 | B11: =SUM(D11:H11) -> 5824.7 | C11: =(B11-B10)/B10 -> 0.06358075413 | D11: 2984.5 | E11: 1558.1 | F11: 699.3 | G11: 270 | H11: 312.8
A12: Apr 2011 - Mar 2012 | B12: =SUM(D12:H12) -> 6503.3 | C12: =(B12-B11)/B11 -> 0.1165038543 | D12: 3379.4 | E12: 1705.3 | F12: 780.5 | G12: 296.3 | H12: 341.8
A13: Apr 2012 - Mar 2013 | B13: =SUM(D13:H13) -> 6977.1 | C13: =(B13-B12)/B12 -> 0.07285531961 | D13: 3697.6 | E13: 1762.1 | F13: 837.2 | G13: 315.6 | H13: 364.6
A14: Apr 2013 - Mar 2014 | B14: =SUM(D14:H14) -> 6736.3 | C14: =(B14-B13)/B13 -> -0.03451290651 | D14: 3636.5 | E14: 1574.8 | F14: 808.4 | G14: 304.6 | H14: 412
A15: Apr 2014 - Mar 2015 | B15: =SUM(D15:H15) -> 7275.2 | C15: =(B15-B14)/B14 -> 0.0799994062 | D15: 4043.1 | E15: 1668.7 | F15: 873 | G15: 328.2 | H15: 362.2
A16: Apr 2015 - Mar 2016 | B16: =SUM(D16:H16) -> 7615.7 | C16: =(B16-B15)/B15 -> 0.04680283704 | D16: 4198.9 | E16: 1788.3 | F16: 913.9 | G16: 330.2 | H16: 384.4
A17: Apr 2016 - Mar 2017 | B17: =SUM(D17:H17) -> 6921.8 | C17: =(B17-B16)/B16 -> -0.09111440839 | D17: 3943.2 | E17: 1486.9 | F17: 830.6 | G17: 296.3 | H17: 364.8
A18: Apr 2017 - Mar 2018 | B18: =SUM(D18:H18) -> 6936.2 | C18: =(B18-B17)/B17 -> 0.002080383715 | D18: 3928.4 | E18: 1508.6 | F18: 832.3 | G18: 290.4 | H18: 376.5
A19: Apr 2018 - Mar 2019 | B19: =SUM(D19:H19) -> 7207.8 | C19: =(B19-B18)/B18 -> 0.03915688706 | D19: 4128.5 | E19: 1486.7 | F19: 864.9 | G19: 300.4 | H19: 427.3
A20: Oct 2018 - Sep 2019 | B20: =SUM(D20:H20) -> 7488.8 | C20: =(B20-B19)/B19 -> 0.03898554344 | D20: 4304.2 | E20: 1582.7 | F20: 901.7 | G20: 304.3 | H20: 395.9

Sheet 13
A1: Gambling Commission
A2: Industry Statistics - May 2020
A4: 13
B5: Gambling Software
B8: Distribution of Income (£m)
A9: Reporting Period | B9: Income | C9: % change | D9: Other | E9: Revenue Share | F9: Sales
A10: Apr 2008 - Mar 2009 | B10: 0 | C10: 0 | D10: 0 | E10: 0 | F10: 0
A11: Apr 2009 - Mar 2010 | B11: 0 | C11: 0 | D11: 0 | E11: 0 | F11: 0
A12: Apr 2010 - Mar 2011 | B12: 0 | C12: 0 | D12: 0 | E12: 0 | F12: 0
A13: Apr 2011 - Mar 2012 | B13: =SUM(D13:F13) -> 107.21 | D13: 0 | E13: 36.46 | F13: 70.75
A14: Apr 2012 - Mar 2013 | B14: =SUM(D14:F14) -> 104.924445 | C14: =SUM(B14-B13)/B13 -> -0.02131848709 | D14: 0.1948912767 | E14: 37.40158804 | F14: 67.32796568
A15: Apr 2013 - Mar 2014 | B15: =SUM(D15:F15) -> 150.344966 | C15: =SUM(B15-B14)/B14 -> 0.4328878843 | D15: 2.669025233 | E15: 46.9197995 | F15: 100.7561413
A16: Apr 2014 - Mar 2015 | B16: =SUM(D16:F16) -> 223.9046782 | C16: =SUM(B16-B15)/B15 -> 0.4892728644 | D16: 21.53258286 | E16: 145.5042853 | F16: 56.86781001
A17: Apr 2015 - Mar 2016 | B17: =SUM(D17:F17) -> 608.4459398 | C17: =SUM(B17-B16)/B16 -> 1.717432904 | D17: 70.8808979 | E17: 356.0860595 | F17: 181.4789825
A18: Apr 2016 - Mar 2017 | B18: =SUM(D18:F18) -> 683.8318449 | C18: =SUM(B18-B17)/B17 -> 0.1238991012 | D18: 169.8351239 | E18: 309.1151515 | F18: 204.8815695
A19: Apr 2017 - Mar 2018R | B19: =SUM(D19:F19) -> 772.7509865 | C19: =SUM(B19-B18)/B18 -> 0.1300307118 | D19: 37.4602629 | E19: 464.3791446 | F19: 270.911579
A20: Apr 2018 - Mar 2019R | B20: =SUM(D20:F20) -> 763.0001094 | C20: =SUM(B20-B19)/B19 -> -0.01261839487 | D20: 39.41325057 | E20: 497.1053534 | F20: 226.4815055
A21: Oct 2018 - Sep 2019P | B21: =SUM(D21:F21) -> 824.1150686 | C21: =SUM(B21-B20)/B20 -> 0.08009823125 | D21: 48.88137369 | E21: 533.8697839 | F21: 241.3639111
